Workbook

Sheet Лист1
M1: пример
B2: первая цена | C2: вторая | D2: третья | F2: среднее значение | G2: Ваша одна формула | H2: Новая формула | I2: Самая новая | M2: первая цена | N2: вторая | O2: третья | P2: сред значение
B3: 82 | C3: 83 | D3: 84 | M3: 82 | N3: 83 | O3: 84
B4: 1 | C4: 1 | D4: 1 | E4: истина1 | F4: =(B3*B4+C3*C4+D3*D4)/(B4+C4+D4) -> 83 | G4: =IF(SIGN(B4)=SIGN(D4),($B$3*B4+$C$3*C4+$D$3*D4)/(B4+C4+D4),IF(SIGN(B4)=SIGN(C4),($B$3*B4+$C$3*C4)/(B4+C4),$B$3)) -> 83 | H4: =IF(AND(SUM(B4:D4)=0,D4<>0),"вне рынка",IF(OR(ABS(SIGN(B4)+SIGN(C4)+SIGN(D4))>1,SIGN(B4)=SIGN(D4)),($B$3*B4+$C$3*C4+$D$3*D4)/(B4+C4+D4),IF(ABS(D4)>ABS(B4+C4),$D$3,IF(SIGN(B4)=SIGN(C4),($B$3*B4+$C$3*C4)/(B4+C4),$B$3)))) -> 83 | I4: =IF(AND(SUM(B4:D4)=0,D4<>0),"вне рынка",IF(ABS(SIGN(B4)+SIGN(C4)+SIGN(D4))=3,($B$3*B4+$C$3*C4+$D$3*D4)/(B4+C4+D4),IF(SIGN(B4)=SIGN(D4),($B$3*(B4+C4)+$D$3*D4)/(B4+C4+D4),IF(ABS(D4)>ABS(B4+C4),$D$3,IF(SIGN(B4)=SIGN(C4),($B$3*B4+$C$3*C4)/(B4+C4),$B$3))))) -> 83 | L4: =SUM(SIGN(B4:D4)) -> 3
B5: 1 | C5: 1 | D5: 0 | E5: истина2 | F5: =(B3*B5+C3*C5+D3*D5)/(B5+C5+D5) -> 82.5 | G5: =IF(SIGN(B5)=SIGN(D5),($B$3*B5+$C$3*C5+$D$3*D5)/(B5+C5+D5),IF(SIGN(B5)=SIGN(C5),($B$3*B5+$C$3*C5)/(B5+C5),$B$3)) -> 82.5 | H5: =IF(AND(SUM(B5:D5)=0,D5<>0),"вне рынка",IF(OR(ABS(SIGN(B5)+SIGN(C5)+SIGN(D5))>1,SIGN(B5)=SIGN(D5)),($B$3*B5+$C$3*C5+$D$3*D5)/(B5+C5+D5),IF(ABS(D5)>ABS(B5+C5),$D$3,IF(SIGN(B5)=SIGN(C5),($B$3*B5+$C$3*C5)/(B5+C5),$B$3)))) -> 82.5 | I5: =IF(AND(SUM(B5:D5)=0,D5<>0),"вне рынка",IF(ABS(SIGN(B5)+SIGN(C5)+SIGN(D5))=3,($B$3*B5+$C$3*C5+$D$3*D5)/(B5+C5+D5),IF(SIGN(B5)=SIGN(D5),($B$3*(B5+C5)+$D$3*D5)/(B5+C5+D5),IF(ABS(D5)>ABS(B5+C5),$D$3,IF(SIGN(B5)=SIGN(C5),($B$3*B5+$C$3*C5)/(B5+C5),$B$3))))) -> 82.5
B6: -1 | C6: -1 | D6: -1 | E6: истина1 | F6: =(B3*B6+C3*C6+D3*D6)/(B6+C6+D6) -> 83 | G6: 83 | H6: 83 | I6: 83
B7: -1 | C7: -1 | D7: 0 | E7: истина2 | F7: =(B3*B7+C3*C7+D3*D7)/(B7+C7+D7) -> 82.5 | G7: 82.5 | H7: 82.5 | I7: 82.5
B8: -1 | C8: -1 | D8: 2 | E8: истина2 | F8: =(B3*B8+C3*C8+D3*D8*0)/(B8+C8+D8*0) -> 82.5 | G8: 82.5 | H8: вне рынка | I8: вне рынка | L8: вот тут возможно покупок больше(то есть больше суммы отрицательных чисел, но может и меньше), то есть будет еще одна истина, равная D3, то есть если D12>суммы -1*(B12+C12)=D3, в противном случае, равно G12 (столбик С только учавствует в сравнении больше или меньше к новой истине).И третья истина,новая,равная нулю(ее можно просто назвать не ноль,а ВНЕ РЫНКА-просто термином),когда количество в сумме равно нулю.пример: -1,-1,2, в сумме равно нулю. | M8: -1 | N8: -1 | O8: 5 | P8: =D3 -> 84
B9: -3 | C9: 1 | D9: 3 | E9: лож1 | F9: =B3 -> 82 | G9: 82 | H9: 84 | I9: 84 | L9: вот тут возможно покупок больше(то есть больше отрицательного числа, но может и меньше), то есть будет еще одна истина, равная D3, то есть если D13>-1*B13=D3, в противном случае, равно G13 (столбик С только учавствует в сравнении больше или меньше к новой истине)И третья истина,новая,равная нулю(ее можно просто назвать не ноль,а ВНЕ РЫНКА-просто термином),когда количество в сумме равно нулю.пример: -5,3,2, в сумме равно нулю. | M9: -2 | N9: 1 | O9: 3 | P9: =D3 -> 84
B10: -2 | C10: 1 | D10: -2 | E10: истина1 | F10: =(B3*B10+C3*C10+D3*D10)/(B10+C10+D10) -> 83 | G10: 83 | H10: 83 | I10: 83.33333333
B11: 2 | C11: 1 | D11: -4 | E11: истина2 | F11: =(B3*B11+C3*C11+D3*D11*0)/(B11+C11+D11*0) -> 82.33333333 | G11: 82.33333333 | H11: 84 | I11: 84 | L11: вот тут возможно продаж больше(то есть больше суммы полож чисел, но может и меньше), то есть будет еще одна истина, равная D3, то есть если D15*-1>суммы (B15+C15)=D3, в противном случае, равно G15 (столбик С только учавствует в сравнении больше или меньше к новой истине)И третья истина,новая,равная нулю(ее можно просто назвать не ноль,а ВНЕ РЫНКА-просто термином),когда количество в сумме равно нулю.пример: 1,1,-2, в сумме равно нулю. | M11: 1 | N11: 1 | O11: -4 | P11: =D3 -> 84
B12: 3 | C12: -1 | D12: -2 | E12: лож1 | F12: =B3 -> 82 | G12: 82 | H12: вне рынка | I12: вне рынка | L12: вот тут возможно продаж больше(то есть больше суммы 1-1 чисел, но может и меньше), то есть будет еще одна истина, равная D3, то есть если D16*-1>суммы (B16+C16)=D3, в противном случае, равно G16 (столбик С только учавствует в сравнении больше или меньше к новой истине)И третья истина,новая,равная нулю(ее можно просто назвать не ноль,а ВНЕ РЫНКА-просто термином),когда количество в сумме равно нулю.пример: 2,-1,-1, в сумме равно нулю. | M12: 2 | N12: -1 | O12: -4 | P12: =D3 -> 84
B13: 3 | C13: -1 | D13: 4 | E13: истина1 | F13: =(B3*B13+C3*C13+D3*D13)/(B13+C13+D13) -> 83.16666667 | G13: 83.16666667 | H13: 83.16666667 | I13: 83.33333333
B14: -2 | C14: 1 | D14: 0 | E14: лож1 | F14: =B3 -> 82 | G14: 82 | H14: 82 | I14: 82
B15: 2 | C15: -1 | D15: 0 | E15: лож1 | F15: =B3 -> 82 | G15: 82 | H15: 82 | I15: 82
B17: первая цена | C17: вторая | D17: третья | E17: четвертая | G17: среднее значение | H17: моя формула для данной ячейки
B18: 82 | C18: 83 | D18: 84 | E18: 85 | H18: Новая формула | I18: Группа (доп. столбец) | J18: Самая новая | L18: Условие первой и второй покупки может иметь только одно направление. То есть: если к примеру -1 1, то -1 будет всегда больше чем 1, то есть -3 2 или -2 1. И наоброт, если условие 1 -1 то,1 будет доминировать, пример 3 -2 или 2 -1.это правило для всех вариантов ниже, а вот третья и четвертая покупка имеет право менять направление или суммой давать ноль.
B20: 1 | C20: 1 | D20: 1 | E20: 1 | F20: =ОДИНАКЗНАК(B20:E20) -> TRUE | G20: =($B$18*B20+$C$18*C20+$D$18*D20+$E$18*E20)/(B20+C20+D20+E20) -> 83.5 | H20: =(B18*B20+C18*C20+D18*D20+E18*E20)/(B20+C20+D20+E20) -> 83.5 | I20: =IF(ОДИНАКЗНАК(B20:E20),1,IF(ОДИНАКЗНАК(C20:E20),2,IF(AND(ОДИНАКЗНАК(B20:C20),ОДИНАКЗНАК(D20:E20)),3,IF(ОДИНАКЗНАК(B20:D20),4,IF(AND(NOT(ОДИНАКЗНАК(B20:C20)),NOT(ОДИНАКЗНАК(C20:D20))),5,IF(AND(NOT(ОДИНАКЗНАК(B20:C20)),ОДИНАКЗНАК(C20:D20)),6,7)))))) -> 1 | J20: =IF(SUM(B20:E20)=0,"вне рынка",IF(SUM(B20:D20)=0,$E$18,CHOOSE(I20,СРВЗВЕШ($B$18:$E$18,B20:E20),IF(ABS(B20)>ABS(SUM(C20:E20)),$B$18,IF(ABS(B20)<ABS(SUM(C20:D20)),($D$18*SUM(B20:D20)+$E$18*E20)/SUM(B20:E20),$E$18)),IF(ABS(SUM(B20:C20))>ABS(SUM(D20:E20)),СРВЗВЕШ($B$18:$C$18,B20:C20),IF(D20=0,$E$18,IF(OR(SUM(B20:D20)>0,ABS(SUM(B20:C20))<ABS(SUM(D20:E20))),($D$18*SUM(B20:D20)+$E$18*E20)/SUM(B20:E20)))),IF(ABS(SUM(B20:D20))>ABS(E20),СРВЗВЕШ($B$18:$D$18,B20:D20),$E$18),IF(ABS(SUM(B20:D20))>ABS(E20),($B$18*SUM(B20:C20)+$D$18*D20)/SUM(B20:D20),$E$18),IF(ABS(B20)>ABS(SUM(C20:D20)),($B$18*SUM(B20:D20)+$E$18*E20)/SUM(B20:E20),$D$18),IF(ABS(B20)>ABS(SUM(C20:D20)),($B$18*B20+$C$18*C20+$E$18*E20)/SUM(B20,C20,E20),$D$18)))) -> 83.5 | K20: =IF(ISTEXT(J20),H20=J20,ROUND(H20,2)=ROUND(J20,2)) -> TRUE | L20: =COUNTIF(B20:E20,">=0")>=3+COUNTIF(B20:E20,"<=0")>=3 -> TRUE
B21: 1 | C21: 1 | D21: 1 | E21: 0 | F21: =ОДИНАКЗНАК(B21:E21) -> TRUE | G21: =($B$18*B21+$C$18*C21+$D$18*D21+$E$18*E21)/(B21+C21+D21+E21) -> 83 | H21: =(B18*B21+C18*C21+D18*D21+E18*E21)/(B21+C21+D21+E21) -> 83 | I21: =IF(ОДИНАКЗНАК(B21:E21),1,IF(ОДИНАКЗНАК(C21:E21),2,IF(AND(ОДИНАКЗНАК(B21:C21),ОДИНАКЗНАК(D21:E21)),3,IF(ОДИНАКЗНАК(B21:D21),4,IF(AND(NOT(ОДИНАКЗНАК(B21:C21)),NOT(ОДИНАКЗНАК(C21:D21))),5,IF(AND(NOT(ОДИНАКЗНАК(B21:C21)),ОДИНАКЗНАК(C21:D21)),6,7)))))) -> 1 | J21: =IF(SUM(B21:E21)=0,"вне рынка",IF(SUM(B21:D21)=0,$E$18,CHOOSE(I21,СРВЗВЕШ($B$18:$E$18,B21:E21),IF(ABS(B21)>ABS(SUM(C21:E21)),$B$18,IF(ABS(B21)<ABS(SUM(C21:D21)),($D$18*SUM(B21:D21)+$E$18*E21)/SUM(B21:E21),$E$18)),IF(ABS(SUM(B21:C21))>ABS(SUM(D21:E21)),СРВЗВЕШ($B$18:$C$18,B21:C21),IF(D21=0,$E$18,IF(OR(SUM(B21:D21)>0,ABS(SUM(B21:C21))<ABS(SUM(D21:E21))),($D$18*SUM(B21:D21)+$E$18*E21)/SUM(B21:E21)))),IF(ABS(SUM(B21:D21))>ABS(E21),СРВЗВЕШ($B$18:$D$18,B21:D21),$E$18),IF(ABS(SUM(B21:D21))>ABS(E21),($B$18*SUM(B21:C21)+$D$18*D21)/SUM(B21:D21),$E$18),IF(ABS(B21)>ABS(SUM(C21:D21)),($B$18*SUM(B21:D21)+$E$18*E21)/SUM(B21:E21),$D$18),IF(ABS(B21)>ABS(SUM(C21:D21)),($B$18*B21+$C$18*C21+$E$18*E21)/SUM(B21,C21,E21),$D$18)))) -> 83 | K21: =IF(ISTEXT(J21),H21=J21,ROUND(H21,2)=ROUND(J21,2)) -> TRUE
B22: 1 | C22: 1 | D22: 0 | E22: 0 | F22: TRUE | G22: 82.5 | H22: =(B18*B22+C18*C22+D18*D22+E18*E22)/(B22+C22+D22+E22) -> 82.5 | I22: =IF(ОДИНАКЗНАК(B22:E22),1,IF(ОДИНАКЗНАК(C22:E22),2,IF(AND(ОДИНАКЗНАК(B22:C22),ОДИНАКЗНАК(D22:E22)),3,IF(ОДИНАКЗНАК(B22:D22),4,IF(AND(NOT(ОДИНАКЗНАК(B22:C22)),NOT(ОДИНАКЗНАК(C22:D22))),5,IF(AND(NOT(ОДИНАКЗНАК(B22:C22)),ОДИНАКЗНАК(C22:D22)),6,7)))))) -> 1 | J22: =IF(SUM(B22:E22)=0,"вне рынка",IF(SUM(B22:D22)=0,$E$18,CHOOSE(I22,СРВЗВЕШ($B$18:$E$18,B22:E22),IF(ABS(B22)>ABS(SUM(C22:E22)),$B$18,IF(ABS(B22)<ABS(SUM(C22:D22)),($D$18*SUM(B22:D22)+$E$18*E22)/SUM(B22:E22),$E$18)),IF(ABS(SUM(B22:C22))>ABS(SUM(D22:E22)),СРВЗВЕШ($B$18:$C$18,B22:C22),IF(D22=0,$E$18,IF(OR(SUM(B22:D22)>0,ABS(SUM(B22:C22))<ABS(SUM(D22:E22))),($D$18*SUM(B22:D22)+$E$18*E22)/SUM(B22:E22)))),IF(ABS(SUM(B22:D22))>ABS(E22),СРВЗВЕШ($B$18:$D$18,B22:D22),$E$18),IF(ABS(SUM(B22:D22))>ABS(E22),($B$18*SUM(B22:C22)+$D$18*D22)/SUM(B22:D22),$E$18),IF(ABS(B22)>ABS(SUM(C22:D22)),($B$18*SUM(B22:D22)+$E$18*E22)/SUM(B22:E22),$D$18),IF(ABS(B22)>ABS(SUM(C22:D22)),($B$18*B22+$C$18*C22+$E$18*E22)/SUM(B22,C22,E22),$D$18)))) -> 82.5 | K22: TRUE
B23: 1 | C23: 1 | D23: 0 | E23: 1 | F23: TRUE | G23: 83.33333333 | H23: =(B18*B23+C18*C23+D18*D23+E18*E23)/(B23+C23+D23+E23) -> 83.33333333 | I23: =IF(ОДИНАКЗНАК(B23:E23),1,IF(ОДИНАКЗНАК(C23:E23),2,IF(AND(ОДИНАКЗНАК(B23:C23),ОДИНАКЗНАК(D23:E23)),3,IF(ОДИНАКЗНАК(B23:D23),4,IF(AND(NOT(ОДИНАКЗНАК(B23:C23)),NOT(ОДИНАКЗНАК(C23:D23))),5,IF(AND(NOT(ОДИНАКЗНАК(B23:C23)),ОДИНАКЗНАК(C23:D23)),6,7)))))) -> 1 | J23: =IF(SUM(B23:E23)=0,"вне рынка",IF(SUM(B23:D23)=0,$E$18,CHOOSE(I23,СРВЗВЕШ($B$18:$E$18,B23:E23),IF(ABS(B23)>ABS(SUM(C23:E23)),$B$18,IF(ABS(B23)<ABS(SUM(C23:D23)),($D$18*SUM(B23:D23)+$E$18*E23)/SUM(B23:E23),$E$18)),IF(ABS(SUM(B23:C23))>ABS(SUM(D23:E23)),СРВЗВЕШ($B$18:$C$18,B23:C23),IF(D23=0,$E$18,IF(OR(SUM(B23:D23)>0,ABS(SUM(B23:C23))<ABS(SUM(D23:E23))),($D$18*SUM(B23:D23)+$E$18*E23)/SUM(B23:E23)))),IF(ABS(SUM(B23:D23))>ABS(E23),СРВЗВЕШ($B$18:$D$18,B23:D23),$E$18),IF(ABS(SUM(B23:D23))>ABS(E23),($B$18*SUM(B23:C23)+$D$18*D23)/SUM(B23:D23),$E$18),IF(ABS(B23)>ABS(SUM(C23:D23)),($B$18*SUM(B23:D23)+$E$18*E23)/SUM(B23:E23),$D$18),IF(ABS(B23)>ABS(SUM(C23:D23)),($B$18*B23+$C$18*C23+$E$18*E23)/SUM(B23,C23,E23),$D$18)))) -> 83.33333588 | K23: TRUE
B24: -1 | C24: -1 | D24: -1 | E24: -1 | F24: TRUE | G24: =($B$18*B24+$C$18*C24+$D$18*D24+$E$18*E24)/(B24+C24+D24+E24) -> 83.5 | H24: =(B18*B24+C18*C24+D18*D24+E18*E24)/(B24+C24+D24+E24) -> 83.5 | I24: =IF(ОДИНАКЗНАК(B24:E24),1,IF(ОДИНАКЗНАК(C24:E24),2,IF(AND(ОДИНАКЗНАК(B24:C24),ОДИНАКЗНАК(D24:E24)),3,IF(ОДИНАКЗНАК(B24:D24),4,IF(AND(NOT(ОДИНАКЗНАК(B24:C24)),NOT(ОДИНАКЗНАК(C24:D24))),5,IF(AND(NOT(ОДИНАКЗНАК(B24:C24)),ОДИНАКЗНАК(C24:D24)),6,7)))))) -> 1 | J24: =IF(SUM(B24:E24)=0,"вне рынка",IF(SUM(B24:D24)=0,$E$18,CHOOSE(I24,СРВЗВЕШ($B$18:$E$18,B24:E24),IF(ABS(B24)>ABS(SUM(C24:E24)),$B$18,IF(ABS(B24)<ABS(SUM(C24:D24)),($D$18*SUM(B24:D24)+$E$18*E24)/SUM(B24:E24),$E$18)),IF(ABS(SUM(B24:C24))>ABS(SUM(D24:E24)),СРВЗВЕШ($B$18:$C$18,B24:C24),IF(D24=0,$E$18,IF(OR(SUM(B24:D24)>0,ABS(SUM(B24:C24))<ABS(SUM(D24:E24))),($D$18*SUM(B24:D24)+$E$18*E24)/SUM(B24:E24)))),IF(ABS(SUM(B24:D24))>ABS(E24),СРВЗВЕШ($B$18:$D$18,B24:D24),$E$18),IF(ABS(SUM(B24:D24))>ABS(E24),($B$18*SUM(B24:C24)+$D$18*D24)/SUM(B24:D24),$E$18),IF(ABS(B24)>ABS(SUM(C24:D24)),($B$18*SUM(B24:D24)+$E$18*E24)/SUM(B24:E24),$D$18),IF(ABS(B24)>ABS(SUM(C24:D24)),($B$18*B24+$C$18*C24+$E$18*E24)/SUM(B24,C24,E24),$D$18)))) -> 83.5 | K24: TRUE
B25: -1 | C25: -1 | D25: -1 | E25: 0 | F25: TRUE | G25: 83 | H25: =(B18*B25+C18*C25+D18*D25+E18*E25)/(B25+C25+D25+E25) -> 83 | I25: =IF(ОДИНАКЗНАК(B25:E25),1,IF(ОДИНАКЗНАК(C25:E25),2,IF(AND(ОДИНАКЗНАК(B25:C25),ОДИНАКЗНАК(D25:E25)),3,IF(ОДИНАКЗНАК(B25:D25),4,IF(AND(NOT(ОДИНАКЗНАК(B25:C25)),NOT(ОДИНАКЗНАК(C25:D25))),5,IF(AND(NOT(ОДИНАКЗНАК(B25:C25)),ОДИНАКЗНАК(C25:D25)),6,7)))))) -> 1 | J25: =IF(SUM(B25:E25)=0,"вне рынка",IF(SUM(B25:D25)=0,$E$18,CHOOSE(I25,СРВЗВЕШ($B$18:$E$18,B25:E25),IF(ABS(B25)>ABS(SUM(C25:E25)),$B$18,IF(ABS(B25)<ABS(SUM(C25:D25)),($D$18*SUM(B25:D25)+$E$18*E25)/SUM(B25:E25),$E$18)),IF(ABS(SUM(B25:C25))>ABS(SUM(D25:E25)),СРВЗВЕШ($B$18:$C$18,B25:C25),IF(D25=0,$E$18,IF(OR(SUM(B25:D25)>0,ABS(SUM(B25:C25))<ABS(SUM(D25:E25))),($D$18*SUM(B25:D25)+$E$18*E25)/SUM(B25:E25)))),IF(ABS(SUM(B25:D25))>ABS(E25),СРВЗВЕШ($B$18:$D$18,B25:D25),$E$18),IF(ABS(SUM(B25:D25))>ABS(E25),($B$18*SUM(B25:C25)+$D$18*D25)/SUM(B25:D25),$E$18),IF(ABS(B25)>ABS(SUM(C25:D25)),($B$18*SUM(B25:D25)+$E$18*E25)/SUM(B25:E25),$D$18),IF(ABS(B25)>ABS(SUM(C25:D25)),($B$18*B25+$C$18*C25+$E$18*E25)/SUM(B25,C25,E25),$D$18)))) -> 83 | K25: TRUE | L25: расчет не проводил, аналогично,выше
B26: -1 | C26: -1 | D26: 0 | E26: 0 | F26: TRUE | G26: 82.5 | H26: =(B18*B26+C18*C26+D18*D26+E18*E26)/(B26+C26+D26+E26) -> 82.5 | I26: =IF(ОДИНАКЗНАК(B26:E26),1,IF(ОДИНАКЗНАК(C26:E26),2,IF(AND(ОДИНАКЗНАК(B26:C26),ОДИНАКЗНАК(D26:E26)),3,IF(ОДИНАКЗНАК(B26:D26),4,IF(AND(NOT(ОДИНАКЗНАК(B26:C26)),NOT(ОДИНАКЗНАК(C26:D26))),5,IF(AND(NOT(ОДИНАКЗНАК(B26:C26)),ОДИНАКЗНАК(C26:D26)),6,7)))))) -> 1 | J26: =IF(SUM(B26:E26)=0,"вне рынка",IF(SUM(B26:D26)=0,$E$18,CHOOSE(I26,СРВЗВЕШ($B$18:$E$18,B26:E26),IF(ABS(B26)>ABS(SUM(C26:E26)),$B$18,IF(ABS(B26)<ABS(SUM(C26:D26)),($D$18*SUM(B26:D26)+$E$18*E26)/SUM(B26:E26),$E$18)),IF(ABS(SUM(B26:C26))>ABS(SUM(D26:E26)),СРВЗВЕШ($B$18:$C$18,B26:C26),IF(D26=0,$E$18,IF(OR(SUM(B26:D26)>0,ABS(SUM(B26:C26))<ABS(SUM(D26:E26))),($D$18*SUM(B26:D26)+$E$18*E26)/SUM(B26:E26)))),IF(ABS(SUM(B26:D26))>ABS(E26),СРВЗВЕШ($B$18:$D$18,B26:D26),$E$18),IF(ABS(SUM(B26:D26))>ABS(E26),($B$18*SUM(B26:C26)+$D$18*D26)/SUM(B26:D26),$E$18),IF(ABS(B26)>ABS(SUM(C26:D26)),($B$18*SUM(B26:D26)+$E$18*E26)/SUM(B26:E26),$D$18),IF(ABS(B26)>ABS(SUM(C26:D26)),($B$18*B26+$C$18*C26+$E$18*E26)/SUM(B26,C26,E26),$D$18)))) -> 82.5 | K26: TRUE | L26: расчет не проводил, аналогично,выше
B27: -1 | C27: -1 | D27: 0 | E27: -1 | F27: TRUE | G27: 83.33333333 | H27: =(B18*B27+C18*C27+D18*D27+E18*E27)/(B27+C27+D27+E27) -> 83.33333333 | I27: =IF(ОДИНАКЗНАК(B27:E27),1,IF(ОДИНАКЗНАК(C27:E27),2,IF(AND(ОДИНАКЗНАК(B27:C27),ОДИНАКЗНАК(D27:E27)),3,IF(ОДИНАКЗНАК(B27:D27),4,IF(AND(NOT(ОДИНАКЗНАК(B27:C27)),NOT(ОДИНАКЗНАК(C27:D27))),5,IF(AND(NOT(ОДИНАКЗНАК(B27:C27)),ОДИНАКЗНАК(C27:D27)),6,7)))))) -> 1 | J27: =IF(SUM(B27:E27)=0,"вне рынка",IF(SUM(B27:D27)=0,$E$18,CHOOSE(I27,СРВЗВЕШ($B$18:$E$18,B27:E27),IF(ABS(B27)>ABS(SUM(C27:E27)),$B$18,IF(ABS(B27)<ABS(SUM(C27:D27)),($D$18*SUM(B27:D27)+$E$18*E27)/SUM(B27:E27),$E$18)),IF(ABS(SUM(B27:C27))>ABS(SUM(D27:E27)),СРВЗВЕШ($B$18:$C$18,B27:C27),IF(D27=0,$E$18,IF(OR(SUM(B27:D27)>0,ABS(SUM(B27:C27))<ABS(SUM(D27:E27))),($D$18*SUM(B27:D27)+$E$18*E27)/SUM(B27:E27)))),IF(ABS(SUM(B27:D27))>ABS(E27),СРВЗВЕШ($B$18:$D$18,B27:D27),$E$18),IF(ABS(SUM(B27:D27))>ABS(E27),($B$18*SUM(B27:C27)+$D$18*D27)/SUM(B27:D27),$E$18),IF(ABS(B27)>ABS(SUM(C27:D27)),($B$18*SUM(B27:D27)+$E$18*E27)/SUM(B27:E27),$D$18),IF(ABS(B27)>ABS(SUM(C27:D27)),($B$18*B27+$C$18*C27+$E$18*E27)/SUM(B27,C27,E27),$D$18)))) -> 83.33333588 | K27: TRUE | L27: расчет не проводил, аналогично,выше
B28: -3 | C28: 1 | D28: 1 | E28: 1 | F28: =ОДИНАКЗНАК(C28:E28) -> TRUE | G28: =B18 -> 82 | H28: =IF(SUM(B28:E28)=0,"вне рынка") -> вне рынка | I28: =IF(ОДИНАКЗНАК(B28:E28),1,IF(ОДИНАКЗНАК(C28:E28),2,IF(AND(ОДИНАКЗНАК(B28:C28),ОДИНАКЗНАК(D28:E28)),3,IF(ОДИНАКЗНАК(B28:D28),4,IF(AND(NOT(ОДИНАКЗНАК(B28:C28)),NOT(ОДИНАКЗНАК(C28:D28))),5,IF(AND(NOT(ОДИНАКЗНАК(B28:C28)),ОДИНАКЗНАК(C28:D28)),6,7)))))) -> 2 | J28: =IF(SUM(B28:E28)=0,"вне рынка",IF(SUM(B28:D28)=0,$E$18,CHOOSE(I28,СРВЗВЕШ($B$18:$E$18,B28:E28),IF(ABS(B28)>ABS(SUM(C28:E28)),$B$18,IF(ABS(B28)<ABS(SUM(C28:D28)),($D$18*SUM(B28:D28)+$E$18*E28)/SUM(B28:E28),$E$18)),IF(ABS(SUM(B28:C28))>ABS(SUM(D28:E28)),СРВЗВЕШ($B$18:$C$18,B28:C28),IF(D28=0,$E$18,IF(OR(SUM(B28:D28)>0,ABS(SUM(B28:C28))<ABS(SUM(D28:E28))),($D$18*SUM(B28:D28)+$E$18*E28)/SUM(B28:E28)))),IF(ABS(SUM(B28:D28))>ABS(E28),СРВЗВЕШ($B$18:$D$18,B28:D28),$E$18),IF(ABS(SUM(B28:D28))>ABS(E28),($B$18*SUM(B28:C28)+$D$18*D28)/SUM(B28:D28),$E$18),IF(ABS(B28)>ABS(SUM(C28:D28)),($B$18*SUM(B28:D28)+$E$18*E28)/SUM(B28:E28),$D$18),IF(ABS(B28)>ABS(SUM(C28:D28)),($B$18*B28+$C$18*C28+$E$18*E28)/SUM(B28,C28,E28),$D$18)))) -> вне рынка | K28: TRUE | L28: (условие меняется, если меняется D28,E28. Получается 4ре условия, первое изначальное-лож,когда первая продажа, больше суммы С28,D28,E28 пример:(-1*-7,1,1,1). второе: когда сумма первых трех чисел,равна нулю, то истина равна E18,так как после нуля по Е24 идет покупка(первый правый пример).третье:когда сумма первых трех чисел больше нуля, то истина равна =(D18*(N28+O28+P28)+E28*Q28)/(N28+O28+P28+Q28) пример следующий правый.Четвертая: когда сумма всех покупок равна нулю (истина=слово ВНЕ РЫНКА)например: самый правый.Справа написаны все три варианта,1й написан слева. | M28: -5 | N28: 3 | O28: 2 | P28: 3 | R28: -5 | S28: 3 | T28: 3 | U28: 3 | W28: -4 | X28: 1 | Y28: 1 | Z28: 2
B29: -3 | C29: 1 | D29: 2 | E29: 1 | F29: =ОДИНАКЗНАК(C29:E29) -> TRUE | H29: =E18 -> 85 | I29: =IF(ОДИНАКЗНАК(B29:E29),1,IF(ОДИНАКЗНАК(C29:E29),2,IF(AND(ОДИНАКЗНАК(B29:C29),ОДИНАКЗНАК(D29:E29)),3,IF(ОДИНАКЗНАК(B29:D29),4,IF(AND(NOT(ОДИНАКЗНАК(B29:C29)),NOT(ОДИНАКЗНАК(C29:D29))),5,IF(AND(NOT(ОДИНАКЗНАК(B29:C29)),ОДИНАКЗНАК(C29:D29)),6,7)))))) -> 2 | J29: =IF(SUM(B29:E29)=0,"вне рынка",IF(SUM(B29:D29)=0,$E$18,CHOOSE(I29,СРВЗВЕШ($B$18:$E$18,B29:E29),IF(ABS(B29)>ABS(SUM(C29:E29)),$B$18,IF(ABS(B29)<ABS(SUM(C29:D29)),($D$18*SUM(B29:D29)+$E$18*E29)/SUM(B29:E29),$E$18)),IF(ABS(SUM(B29:C29))>ABS(SUM(D29:E29)),СРВЗВЕШ($B$18:$C$18,B29:C29),IF(D29=0,$E$18,IF(OR(SUM(B29:D29)>0,ABS(SUM(B29:C29))<ABS(SUM(D29:E29))),($D$18*SUM(B29:D29)+$E$18*E29)/SUM(B29:E29)))),IF(ABS(SUM(B29:D29))>ABS(E29),СРВЗВЕШ($B$18:$D$18,B29:D29),$E$18),IF(ABS(SUM(B29:D29))>ABS(E29),($B$18*SUM(B29:C29)+$D$18*D29)/SUM(B29:D29),$E$18),IF(ABS(B29)>ABS(SUM(C29:D29)),($B$18*SUM(B29:D29)+$E$18*E29)/SUM(B29:E29),$D$18),IF(ABS(B29)>ABS(SUM(C29:D29)),($B$18*B29+$C$18*C29+$E$18*E29)/SUM(B29,C29,E29),$D$18)))) -> 85 | K29: TRUE
B30: -3 | C30: 2 | D30: 2 | E30: 1 | F30: TRUE | H30: =(D18*(B30+C30+D30)+E18*E30)/((B30+C30+D30)+E30) -> 84.5 | I30: =IF(ОДИНАКЗНАК(B30:E30),1,IF(ОДИНАКЗНАК(C30:E30),2,IF(AND(ОДИНАКЗНАК(B30:C30),ОДИНАКЗНАК(D30:E30)),3,IF(ОДИНАКЗНАК(B30:D30),4,IF(AND(NOT(ОДИНАКЗНАК(B30:C30)),NOT(ОДИНАКЗНАК(C30:D30))),5,IF(AND(NOT(ОДИНАКЗНАК(B30:C30)),ОДИНАКЗНАК(C30:D30)),6,7)))))) -> 2 | J30: =IF(SUM(B30:E30)=0,"вне рынка",IF(SUM(B30:D30)=0,$E$18,CHOOSE(I30,СРВЗВЕШ($B$18:$E$18,B30:E30),IF(ABS(B30)>ABS(SUM(C30:E30)),$B$18,IF(ABS(B30)<ABS(SUM(C30:D30)),($D$18*SUM(B30:D30)+$E$18*E30)/SUM(B30:E30),$E$18)),IF(ABS(SUM(B30:C30))>ABS(SUM(D30:E30)),СРВЗВЕШ($B$18:$C$18,B30:C30),IF(D30=0,$E$18,IF(OR(SUM(B30:D30)>0,ABS(SUM(B30:C30))<ABS(SUM(D30:E30))),($D$18*SUM(B30:D30)+$E$18*E30)/SUM(B30:E30)))),IF(ABS(SUM(B30:D30))>ABS(E30),СРВЗВЕШ($B$18:$D$18,B30:D30),$E$18),IF(ABS(SUM(B30:D30))>ABS(E30),($B$18*SUM(B30:C30)+$D$18*D30)/SUM(B30:D30),$E$18),IF(ABS(B30)>ABS(SUM(C30:D30)),($B$18*SUM(B30:D30)+$E$18*E30)/SUM(B30:E30),$D$18),IF(ABS(B30)>ABS(SUM(C30:D30)),($B$18*B30+$C$18*C30+$E$18*E30)/SUM(B30,C30,E30),$D$18)))) -> 84.5 | K30: TRUE
B31: -4 | C31: 1 | D31: 1 | E31: 1 | F31: TRUE | H31: =(B18*(B31+C31+D31+E31))/(B31+C31+D31+E31) -> 82 | I31: =IF(ОДИНАКЗНАК(B31:E31),1,IF(ОДИНАКЗНАК(C31:E31),2,IF(AND(ОДИНАКЗНАК(B31:C31),ОДИНАКЗНАК(D31:E31)),3,IF(ОДИНАКЗНАК(B31:D31),4,IF(AND(NOT(ОДИНАКЗНАК(B31:C31)),NOT(ОДИНАКЗНАК(C31:D31))),5,IF(AND(NOT(ОДИНАКЗНАК(B31:C31)),ОДИНАКЗНАК(C31:D31)),6,7)))))) -> 2 | J31: =IF(SUM(B31:E31)=0,"вне рынка",IF(SUM(B31:D31)=0,$E$18,CHOOSE(I31,СРВЗВЕШ($B$18:$E$18,B31:E31),IF(ABS(B31)>ABS(SUM(C31:E31)),$B$18,IF(ABS(B31)<ABS(SUM(C31:D31)),($D$18*SUM(B31:D31)+$E$18*E31)/SUM(B31:E31),$E$18)),IF(ABS(SUM(B31:C31))>ABS(SUM(D31:E31)),СРВЗВЕШ($B$18:$C$18,B31:C31),IF(D31=0,$E$18,IF(OR(SUM(B31:D31)>0,ABS(SUM(B31:C31))<ABS(SUM(D31:E31))),($D$18*SUM(B31:D31)+$E$18*E31)/SUM(B31:E31)))),IF(ABS(SUM(B31:D31))>ABS(E31),СРВЗВЕШ($B$18:$D$18,B31:D31),$E$18),IF(ABS(SUM(B31:D31))>ABS(E31),($B$18*SUM(B31:C31)+$D$18*D31)/SUM(B31:D31),$E$18),IF(ABS(B31)>ABS(SUM(C31:D31)),($B$18*SUM(B31:D31)+$E$18*E31)/SUM(B31:E31),$D$18),IF(ABS(B31)>ABS(SUM(C31:D31)),($B$18*B31+$C$18*C31+$E$18*E31)/SUM(B31,C31,E31),$D$18)))) -> 82 | K31: TRUE
B32: -3 | C32: -2 | D32: 1 | E32: 1 | G32: 82.5 | H32: =(B18*B32+C18*C32+D18*0+E32*0)/(B32+C32+D32*0+E32*0) -> 82.4 | I32: =IF(ОДИНАКЗНАК(B32:E32),1,IF(ОДИНАКЗНАК(C32:E32),2,IF(AND(ОДИНАКЗНАК(B32:C32),ОДИНАКЗНАК(D32:E32)),3,IF(ОДИНАКЗНАК(B32:D32),4,IF(AND(NOT(ОДИНАКЗНАК(B32:C32)),NOT(ОДИНАКЗНАК(C32:D32))),5,IF(AND(NOT(ОДИНАКЗНАК(B32:C32)),ОДИНАКЗНАК(C32:D32)),6,7)))))) -> 3 | J32: =IF(SUM(B32:E32)=0,"вне рынка",IF(SUM(B32:D32)=0,$E$18,CHOOSE(I32,СРВЗВЕШ($B$18:$E$18,B32:E32),IF(ABS(B32)>ABS(SUM(C32:E32)),$B$18,IF(ABS(B32)<ABS(SUM(C32:D32)),($D$18*SUM(B32:D32)+$E$18*E32)/SUM(B32:E32),$E$18)),IF(ABS(SUM(B32:C32))>ABS(SUM(D32:E32)),СРВЗВЕШ($B$18:$C$18,B32:C32),IF(D32=0,$E$18,IF(OR(SUM(B32:D32)>0,ABS(SUM(B32:C32))<ABS(SUM(D32:E32))),($D$18*SUM(B32:D32)+$E$18*E32)/SUM(B32:E32)))),IF(ABS(SUM(B32:D32))>ABS(E32),СРВЗВЕШ($B$18:$D$18,B32:D32),$E$18),IF(ABS(SUM(B32:D32))>ABS(E32),($B$18*SUM(B32:C32)+$D$18*D32)/SUM(B32:D32),$E$18),IF(ABS(B32)>ABS(SUM(C32:D32)),($B$18*SUM(B32:D32)+$E$18*E32)/SUM(B32:E32),$D$18),IF(ABS(B32)>ABS(SUM(C32:D32)),($B$18*B32+$C$18*C32+$E$18*E32)/SUM(B32,C32,E32),$D$18)))) -> 82.40000153 | K32: TRUE | L32: (условие меняется, если меняется D29,E29. Получается 4ре условия, первое изначальное- когда первые две продажи больше сумм 3й,4й покупки(-3 -2 1 1).Второе:когда,сумма первых трех покупок равна нулю,то истина-это четвертая покупка=Е18.Третье: когда, сумма первых трех покупок больше нуля, то средняя будет строиться из третьей покупки(за минусом певых двух) и четвертой. Четвертая: когда сумма всех покупок равна нулю (истина=слово ВНЕ РЫНКА)например: самый правый.Справа написаны все три варианта,1й написан слева. | M32: -1 | N32: -1 | O32: 2 | P32: 1 | R32: -1 | S32: -1 | T32: 3 | U32: 1 | W32: -1 | X32: -1 | Y32: 1 | Z32: 1
B33: -3 | C33: -2 | D33: 5 | E33: 1 | H33: =E18 -> 85 | I33: =IF(ОДИНАКЗНАК(B33:E33),1,IF(ОДИНАКЗНАК(C33:E33),2,IF(AND(ОДИНАКЗНАК(B33:C33),ОДИНАКЗНАК(D33:E33)),3,IF(ОДИНАКЗНАК(B33:D33),4,IF(AND(NOT(ОДИНАКЗНАК(B33:C33)),NOT(ОДИНАКЗНАК(C33:D33))),5,IF(AND(NOT(ОДИНАКЗНАК(B33:C33)),ОДИНАКЗНАК(C33:D33)),6,7)))))) -> 3 | J33: =IF(SUM(B33:E33)=0,"вне рынка",IF(SUM(B33:D33)=0,$E$18,CHOOSE(I33,СРВЗВЕШ($B$18:$E$18,B33:E33),IF(ABS(B33)>ABS(SUM(C33:E33)),$B$18,IF(ABS(B33)<ABS(SUM(C33:D33)),($D$18*SUM(B33:D33)+$E$18*E33)/SUM(B33:E33),$E$18)),IF(ABS(SUM(B33:C33))>ABS(SUM(D33:E33)),СРВЗВЕШ($B$18:$C$18,B33:C33),IF(D33=0,$E$18,IF(OR(SUM(B33:D33)>0,ABS(SUM(B33:C33))<ABS(SUM(D33:E33))),($D$18*SUM(B33:D33)+$E$18*E33)/SUM(B33:E33)))),IF(ABS(SUM(B33:D33))>ABS(E33),СРВЗВЕШ($B$18:$D$18,B33:D33),$E$18),IF(ABS(SUM(B33:D33))>ABS(E33),($B$18*SUM(B33:C33)+$D$18*D33)/SUM(B33:D33),$E$18),IF(ABS(B33)>ABS(SUM(C33:D33)),($B$18*SUM(B33:D33)+$E$18*E33)/SUM(B33:E33),$D$18),IF(ABS(B33)>ABS(SUM(C33:D33)),($B$18*B33+$C$18*C33+$E$18*E33)/SUM(B33,C33,E33),$D$18)))) -> 85 | K33: TRUE
B34: -3 | C34: -2 | D34: 6 | E34: 1 | H34: =(D18*(B34+C34+D34)+E18*E34)/(B34+C34+D34+E34) -> 84.5 | I34: =IF(ОДИНАКЗНАК(B34:E34),1,IF(ОДИНАКЗНАК(C34:E34),2,IF(AND(ОДИНАКЗНАК(B34:C34),ОДИНАКЗНАК(D34:E34)),3,IF(ОДИНАКЗНАК(B34:D34),4,IF(AND(NOT(ОДИНАКЗНАК(B34:C34)),NOT(ОДИНАКЗНАК(C34:D34))),5,IF(AND(NOT(ОДИНАКЗНАК(B34:C34)),ОДИНАКЗНАК(C34:D34)),6,7)))))) -> 3 | J34: =IF(SUM(B34:E34)=0,"вне рынка",IF(SUM(B34:D34)=0,$E$18,CHOOSE(I34,СРВЗВЕШ($B$18:$E$18,B34:E34),IF(ABS(B34)>ABS(SUM(C34:E34)),$B$18,IF(ABS(B34)<ABS(SUM(C34:D34)),($D$18*SUM(B34:D34)+$E$18*E34)/SUM(B34:E34),$E$18)),IF(ABS(SUM(B34:C34))>ABS(SUM(D34:E34)),СРВЗВЕШ($B$18:$C$18,B34:C34),IF(D34=0,$E$18,IF(OR(SUM(B34:D34)>0,ABS(SUM(B34:C34))<ABS(SUM(D34:E34))),($D$18*SUM(B34:D34)+$E$18*E34)/SUM(B34:E34)))),IF(ABS(SUM(B34:D34))>ABS(E34),СРВЗВЕШ($B$18:$D$18,B34:D34),$E$18),IF(ABS(SUM(B34:D34))>ABS(E34),($B$18*SUM(B34:C34)+$D$18*D34)/SUM(B34:D34),$E$18),IF(ABS(B34)>ABS(SUM(C34:D34)),($B$18*SUM(B34:D34)+$E$18*E34)/SUM(B34:E34),$D$18),IF(ABS(B34)>ABS(SUM(C34:D34)),($B$18*B34+$C$18*C34+$E$18*E34)/SUM(B34,C34,E34),$D$18)))) -> 84.5 | K34: TRUE
B35: -3 | C35: -2 | D35: 4 | E35: 1 | H35: =IF(SUM(B35:E35)=0,"вне рынка") -> вне рынка | I35: =IF(ОДИНАКЗНАК(B35:E35),1,IF(ОДИНАКЗНАК(C35:E35),2,IF(AND(ОДИНАКЗНАК(B35:C35),ОДИНАКЗНАК(D35:E35)),3,IF(ОДИНАКЗНАК(B35:D35),4,IF(AND(NOT(ОДИНАКЗНАК(B35:C35)),NOT(ОДИНАКЗНАК(C35:D35))),5,IF(AND(NOT(ОДИНАКЗНАК(B35:C35)),ОДИНАКЗНАК(C35:D35)),6,7)))))) -> 3 | J35: =IF(SUM(B35:E35)=0,"вне рынка",IF(SUM(B35:D35)=0,$E$18,CHOOSE(I35,СРВЗВЕШ($B$18:$E$18,B35:E35),IF(ABS(B35)>ABS(SUM(C35:E35)),$B$18,IF(ABS(B35)<ABS(SUM(C35:D35)),($D$18*SUM(B35:D35)+$E$18*E35)/SUM(B35:E35),$E$18)),IF(ABS(SUM(B35:C35))>ABS(SUM(D35:E35)),СРВЗВЕШ($B$18:$C$18,B35:C35),IF(D35=0,$E$18,IF(OR(SUM(B35:D35)>0,ABS(SUM(B35:C35))<ABS(SUM(D35:E35))),($D$18*SUM(B35:D35)+$E$18*E35)/SUM(B35:E35)))),IF(ABS(SUM(B35:D35))>ABS(E35),СРВЗВЕШ($B$18:$D$18,B35:D35),$E$18),IF(ABS(SUM(B35:D35))>ABS(E35),($B$18*SUM(B35:C35)+$D$18*D35)/SUM(B35:D35),$E$18),IF(ABS(B35)>ABS(SUM(C35:D35)),($B$18*SUM(B35:D35)+$E$18*E35)/SUM(B35:E35),$D$18),IF(ABS(B35)>ABS(SUM(C35:D35)),($B$18*B35+$C$18*C35+$E$18*E35)/SUM(B35,C35,E35),$D$18)))) -> вне рынка | K35: TRUE
B36: -3 | C36: -2 | D36: -1 | E36: 1 | G36: 83 | H36: =(B18*B36+C18*C36+D18*D36+E18*E36*0)/(B36+C36+D36+E36*0) -> 82.66666667 | I36: =IF(ОДИНАКЗНАК(B36:E36),1,IF(ОДИНАКЗНАК(C36:E36),2,IF(AND(ОДИНАКЗНАК(B36:C36),ОДИНАКЗНАК(D36:E36)),3,IF(ОДИНАКЗНАК(B36:D36),4,IF(AND(NOT(ОДИНАКЗНАК(B36:C36)),NOT(ОДИНАКЗНАК(C36:D36))),5,IF(AND(NOT(ОДИНАКЗНАК(B36:C36)),ОДИНАКЗНАК(C36:D36)),6,7)))))) -> 4 | J36: =IF(SUM(B36:E36)=0,"вне рынка",IF(SUM(B36:D36)=0,$E$18,CHOOSE(I36,СРВЗВЕШ($B$18:$E$18,B36:E36),IF(ABS(B36)>ABS(SUM(C36:E36)),$B$18,IF(ABS(B36)<ABS(SUM(C36:D36)),($D$18*SUM(B36:D36)+$E$18*E36)/SUM(B36:E36),$E$18)),IF(ABS(SUM(B36:C36))>ABS(SUM(D36:E36)),СРВЗВЕШ($B$18:$C$18,B36:C36),IF(D36=0,$E$18,IF(OR(SUM(B36:D36)>0,ABS(SUM(B36:C36))<ABS(SUM(D36:E36))),($D$18*SUM(B36:D36)+$E$18*E36)/SUM(B36:E36)))),IF(ABS(SUM(B36:D36))>ABS(E36),СРВЗВЕШ($B$18:$D$18,B36:D36),$E$18),IF(ABS(SUM(B36:D36))>ABS(E36),($B$18*SUM(B36:C36)+$D$18*D36)/SUM(B36:D36),$E$18),IF(ABS(B36)>ABS(SUM(C36:D36)),($B$18*SUM(B36:D36)+$E$18*E36)/SUM(B36:E36),$D$18),IF(ABS(B36)>ABS(SUM(C36:D36)),($B$18*B36+$C$18*C36+$E$18*E36)/SUM(B36,C36,E36),$D$18)))) -> 82.66666412 | K36: TRUE | L36: (условие меняется, если меняется D30,E30. Получается 3ре условия, первое изначальное-когда сумма первых трех покупок больше четвертой,то есть -1*(-1+-1+-1)>E30.второе,когда сумма первых трех меньше четвертого,пример,-1 -1 -1 4,то истина Е30.третье,когда сумма всех покупок равна нулю (истина=слово ВНЕ РЫНКА)например: самый правый.Справа написаны все три варианта,1й написан слева. | M36: -1 | N36: -1 | O36: -1 | P36: 4 | R36: -1 | S36: -1 | T36: -1 | U36: 3
B37: -3 | C37: -2 | D37: -1 | E37: 6 | H37: =IF(SUM(B37:E37)=0,"вне рынка") -> вне рынка | I37: =IF(ОДИНАКЗНАК(B37:E37),1,IF(ОДИНАКЗНАК(C37:E37),2,IF(AND(ОДИНАКЗНАК(B37:C37),ОДИНАКЗНАК(D37:E37)),3,IF(ОДИНАКЗНАК(B37:D37),4,IF(AND(NOT(ОДИНАКЗНАК(B37:C37)),NOT(ОДИНАКЗНАК(C37:D37))),5,IF(AND(NOT(ОДИНАКЗНАК(B37:C37)),ОДИНАКЗНАК(C37:D37)),6,7)))))) -> 4 | J37: =IF(SUM(B37:E37)=0,"вне рынка",IF(SUM(B37:D37)=0,$E$18,CHOOSE(I37,СРВЗВЕШ($B$18:$E$18,B37:E37),IF(ABS(B37)>ABS(SUM(C37:E37)),$B$18,IF(ABS(B37)<ABS(SUM(C37:D37)),($D$18*SUM(B37:D37)+$E$18*E37)/SUM(B37:E37),$E$18)),IF(ABS(SUM(B37:C37))>ABS(SUM(D37:E37)),СРВЗВЕШ($B$18:$C$18,B37:C37),IF(D37=0,$E$18,IF(OR(SUM(B37:D37)>0,ABS(SUM(B37:C37))<ABS(SUM(D37:E37))),($D$18*SUM(B37:D37)+$E$18*E37)/SUM(B37:E37)))),IF(ABS(SUM(B37:D37))>ABS(E37),СРВЗВЕШ($B$18:$D$18,B37:D37),$E$18),IF(ABS(SUM(B37:D37))>ABS(E37),($B$18*SUM(B37:C37)+$D$18*D37)/SUM(B37:D37),$E$18),IF(ABS(B37)>ABS(SUM(C37:D37)),($B$18*SUM(B37:D37)+$E$18*E37)/SUM(B37:E37),$D$18),IF(ABS(B37)>ABS(SUM(C37:D37)),($B$18*B37+$C$18*C37+$E$18*E37)/SUM(B37,C37,E37),$D$18)))) -> вне рынка | K37: TRUE
B38: -3 | C38: -2 | D38: -1 | E38: 7 | H38: =(E18*(B38+C38+D38+E38))/(B38+C38+D38+E38) -> 85 | I38: =IF(ОДИНАКЗНАК(B38:E38),1,IF(ОДИНАКЗНАК(C38:E38),2,IF(AND(ОДИНАКЗНАК(B38:C38),ОДИНАКЗНАК(D38:E38)),3,IF(ОДИНАКЗНАК(B38:D38),4,IF(AND(NOT(ОДИНАКЗНАК(B38:C38)),NOT(ОДИНАКЗНАК(C38:D38))),5,IF(AND(NOT(ОДИНАКЗНАК(B38:C38)),ОДИНАКЗНАК(C38:D38)),6,7)))))) -> 4 | J38: =IF(SUM(B38:E38)=0,"вне рынка",IF(SUM(B38:D38)=0,$E$18,CHOOSE(I38,СРВЗВЕШ($B$18:$E$18,B38:E38),IF(ABS(B38)>ABS(SUM(C38:E38)),$B$18,IF(ABS(B38)<ABS(SUM(C38:D38)),($D$18*SUM(B38:D38)+$E$18*E38)/SUM(B38:E38),$E$18)),IF(ABS(SUM(B38:C38))>ABS(SUM(D38:E38)),СРВЗВЕШ($B$18:$C$18,B38:C38),IF(D38=0,$E$18,IF(OR(SUM(B38:D38)>0,ABS(SUM(B38:C38))<ABS(SUM(D38:E38))),($D$18*SUM(B38:D38)+$E$18*E38)/SUM(B38:E38)))),IF(ABS(SUM(B38:D38))>ABS(E38),СРВЗВЕШ($B$18:$D$18,B38:D38),$E$18),IF(ABS(SUM(B38:D38))>ABS(E38),($B$18*SUM(B38:C38)+$D$18*D38)/SUM(B38:D38),$E$18),IF(ABS(B38)>ABS(SUM(C38:D38)),($B$18*SUM(B38:D38)+$E$18*E38)/SUM(B38:E38),$D$18),IF(ABS(B38)>ABS(SUM(C38:D38)),($B$18*B38+$C$18*C38+$E$18*E38)/SUM(B38,C38,E38),$D$18)))) -> 85 | K38: TRUE
B39: 3 | C39: -1 | D39: -1 | E39: -1 | G39: 82 | H39: =IF(SUM(B39:E39)=0,"вне рынка") -> вне рынка | I39: =IF(ОДИНАКЗНАК(B39:E39),1,IF(ОДИНАКЗНАК(C39:E39),2,IF(AND(ОДИНАКЗНАК(B39:C39),ОДИНАКЗНАК(D39:E39)),3,IF(ОДИНАКЗНАК(B39:D39),4,IF(AND(NOT(ОДИНАКЗНАК(B39:C39)),NOT(ОДИНАКЗНАК(C39:D39))),5,IF(AND(NOT(ОДИНАКЗНАК(B39:C39)),ОДИНАКЗНАК(C39:D39)),6,7)))))) -> 2 | J39: =IF(SUM(B39:E39)=0,"вне рынка",IF(SUM(B39:D39)=0,$E$18,CHOOSE(I39,СРВЗВЕШ($B$18:$E$18,B39:E39),IF(ABS(B39)>ABS(SUM(C39:E39)),$B$18,IF(ABS(B39)<ABS(SUM(C39:D39)),($D$18*SUM(B39:D39)+$E$18*E39)/SUM(B39:E39),$E$18)),IF(ABS(SUM(B39:C39))>ABS(SUM(D39:E39)),СРВЗВЕШ($B$18:$C$18,B39:C39),IF(D39=0,$E$18,IF(OR(SUM(B39:D39)>0,ABS(SUM(B39:C39))<ABS(SUM(D39:E39))),($D$18*SUM(B39:D39)+$E$18*E39)/SUM(B39:E39)))),IF(ABS(SUM(B39:D39))>ABS(E39),СРВЗВЕШ($B$18:$D$18,B39:D39),$E$18),IF(ABS(SUM(B39:D39))>ABS(E39),($B$18*SUM(B39:C39)+$D$18*D39)/SUM(B39:D39),$E$18),IF(ABS(B39)>ABS(SUM(C39:D39)),($B$18*SUM(B39:D39)+$E$18*E39)/SUM(B39:E39),$D$18),IF(ABS(B39)>ABS(SUM(C39:D39)),($B$18*B39+$C$18*C39+$E$18*E39)/SUM(B39,C39,E39),$D$18)))) -> вне рынка | K39: TRUE | L39: (условие меняется, если меняется D31,E31. Получается 4ре условия, первое изначальное-когда первая покупка больше суммы всех остальных,то есть пример:4 -1 -1 -1,то лож.Второе:когда сумма первых трех покупок равна нулю,то истина,последняя продажа Е18 (2 -1 -1 -1).Третье: когда, сумма трех покупок меньше четвертой 3 -1 -4 -1, то истина в средней между третьей(за минусом покупки)и четвертой.Четвертая:когда сумма всех покупок равна нулю (истина=слово ВНЕ РЫНКА)например: самый правый.Справа написаны все три варианта или по тексту,1й написан слева.
B40: 4 | C40: -1 | D40: -1 | E40: -1 | H40: =(B18*(B40+C40+D40+E40))/(B40+C40+D40+E40) -> 82 | I40: =IF(ОДИНАКЗНАК(B40:E40),1,IF(ОДИНАКЗНАК(C40:E40),2,IF(AND(ОДИНАКЗНАК(B40:C40),ОДИНАКЗНАК(D40:E40)),3,IF(ОДИНАКЗНАК(B40:D40),4,IF(AND(NOT(ОДИНАКЗНАК(B40:C40)),NOT(ОДИНАКЗНАК(C40:D40))),5,IF(AND(NOT(ОДИНАКЗНАК(B40:C40)),ОДИНАКЗНАК(C40:D40)),6,7)))))) -> 2 | J40: =IF(SUM(B40:E40)=0,"вне рынка",IF(SUM(B40:D40)=0,$E$18,CHOOSE(I40,СРВЗВЕШ($B$18:$E$18,B40:E40),IF(ABS(B40)>ABS(SUM(C40:E40)),$B$18,IF(ABS(B40)<ABS(SUM(C40:D40)),($D$18*SUM(B40:D40)+$E$18*E40)/SUM(B40:E40),$E$18)),IF(ABS(SUM(B40:C40))>ABS(SUM(D40:E40)),СРВЗВЕШ($B$18:$C$18,B40:C40),IF(D40=0,$E$18,IF(OR(SUM(B40:D40)>0,ABS(SUM(B40:C40))<ABS(SUM(D40:E40))),($D$18*SUM(B40:D40)+$E$18*E40)/SUM(B40:E40)))),IF(ABS(SUM(B40:D40))>ABS(E40),СРВЗВЕШ($B$18:$D$18,B40:D40),$E$18),IF(ABS(SUM(B40:D40))>ABS(E40),($B$18*SUM(B40:C40)+$D$18*D40)/SUM(B40:D40),$E$18),IF(ABS(B40)>ABS(SUM(C40:D40)),($B$18*SUM(B40:D40)+$E$18*E40)/SUM(B40:E40),$D$18),IF(ABS(B40)>ABS(SUM(C40:D40)),($B$18*B40+$C$18*C40+$E$18*E40)/SUM(B40,C40,E40),$D$18)))) -> 82 | K40: TRUE
B41: 3 | C41: -2 | D41: -2 | E41: -1 | H41: =(D18*(B41+C41+D41)+E18*E41)/(B41+C41+D41+E41) -> 84.5 | I41: =IF(ОДИНАКЗНАК(B41:E41),1,IF(ОДИНАКЗНАК(C41:E41),2,IF(AND(ОДИНАКЗНАК(B41:C41),ОДИНАКЗНАК(D41:E41)),3,IF(ОДИНАКЗНАК(B41:D41),4,IF(AND(NOT(ОДИНАКЗНАК(B41:C41)),NOT(ОДИНАКЗНАК(C41:D41))),5,IF(AND(NOT(ОДИНАКЗНАК(B41:C41)),ОДИНАКЗНАК(C41:D41)),6,7)))))) -> 2 | J41: =IF(SUM(B41:E41)=0,"вне рынка",IF(SUM(B41:D41)=0,$E$18,CHOOSE(I41,СРВЗВЕШ($B$18:$E$18,B41:E41),IF(ABS(B41)>ABS(SUM(C41:E41)),$B$18,IF(ABS(B41)<ABS(SUM(C41:D41)),($D$18*SUM(B41:D41)+$E$18*E41)/SUM(B41:E41),$E$18)),IF(ABS(SUM(B41:C41))>ABS(SUM(D41:E41)),СРВЗВЕШ($B$18:$C$18,B41:C41),IF(D41=0,$E$18,IF(OR(SUM(B41:D41)>0,ABS(SUM(B41:C41))<ABS(SUM(D41:E41))),($D$18*SUM(B41:D41)+$E$18*E41)/SUM(B41:E41)))),IF(ABS(SUM(B41:D41))>ABS(E41),СРВЗВЕШ($B$18:$D$18,B41:D41),$E$18),IF(ABS(SUM(B41:D41))>ABS(E41),($B$18*SUM(B41:C41)+$D$18*D41)/SUM(B41:D41),$E$18),IF(ABS(B41)>ABS(SUM(C41:D41)),($B$18*SUM(B41:D41)+$E$18*E41)/SUM(B41:E41),$D$18),IF(ABS(B41)>ABS(SUM(C41:D41)),($B$18*B41+$C$18*C41+$E$18*E41)/SUM(B41,C41,E41),$D$18)))) -> 84.5 | K41: TRUE
B42: 3 | C42: -1 | D42: -1 | E42: -2 | H42: =(E18*(B42+C42+D42+E42)/(B42+C42+D42+E42)) -> 85 | I42: =IF(ОДИНАКЗНАК(B42:E42),1,IF(ОДИНАКЗНАК(C42:E42),2,IF(AND(ОДИНАКЗНАК(B42:C42),ОДИНАКЗНАК(D42:E42)),3,IF(ОДИНАКЗНАК(B42:D42),4,IF(AND(NOT(ОДИНАКЗНАК(B42:C42)),NOT(ОДИНАКЗНАК(C42:D42))),5,IF(AND(NOT(ОДИНАКЗНАК(B42:C42)),ОДИНАКЗНАК(C42:D42)),6,7)))))) -> 2 | J42: =IF(SUM(B42:E42)=0,"вне рынка",IF(SUM(B42:D42)=0,$E$18,CHOOSE(I42,СРВЗВЕШ($B$18:$E$18,B42:E42),IF(ABS(B42)>ABS(SUM(C42:E42)),$B$18,IF(ABS(B42)<ABS(SUM(C42:D42)),($D$18*SUM(B42:D42)+$E$18*E42)/SUM(B42:E42),$E$18)),IF(ABS(SUM(B42:C42))>ABS(SUM(D42:E42)),СРВЗВЕШ($B$18:$C$18,B42:C42),IF(D42=0,$E$18,IF(OR(SUM(B42:D42)>0,ABS(SUM(B42:C42))<ABS(SUM(D42:E42))),($D$18*SUM(B42:D42)+$E$18*E42)/SUM(B42:E42)))),IF(ABS(SUM(B42:D42))>ABS(E42),СРВЗВЕШ($B$18:$D$18,B42:D42),$E$18),IF(ABS(SUM(B42:D42))>ABS(E42),($B$18*SUM(B42:C42)+$D$18*D42)/SUM(B42:D42),$E$18),IF(ABS(B42)>ABS(SUM(C42:D42)),($B$18*SUM(B42:D42)+$E$18*E42)/SUM(B42:E42),$D$18),IF(ABS(B42)>ABS(SUM(C42:D42)),($B$18*B42+$C$18*C42+$E$18*E42)/SUM(B42,C42,E42),$D$18)))) -> 85 | K42: TRUE
B43: 3 | C43: 1 | D43: -1 | E43: -1 | H43: =(B18*B43+C18*C43+D18*D43*0+E18*E43*0)/(B43+C43+D43*0+E43*0) -> 82.25 | I43: =IF(ОДИНАКЗНАК(B43:E43),1,IF(ОДИНАКЗНАК(C43:E43),2,IF(AND(ОДИНАКЗНАК(B43:C43),ОДИНАКЗНАК(D43:E43)),3,IF(ОДИНАКЗНАК(B43:D43),4,IF(AND(NOT(ОДИНАКЗНАК(B43:C43)),NOT(ОДИНАКЗНАК(C43:D43))),5,IF(AND(NOT(ОДИНАКЗНАК(B43:C43)),ОДИНАКЗНАК(C43:D43)),6,7)))))) -> 3 | J43: =IF(SUM(B43:E43)=0,"вне рынка",IF(SUM(B43:D43)=0,$E$18,CHOOSE(I43,СРВЗВЕШ($B$18:$E$18,B43:E43),IF(ABS(B43)>ABS(SUM(C43:E43)),$B$18,IF(ABS(B43)<ABS(SUM(C43:D43)),($D$18*SUM(B43:D43)+$E$18*E43)/SUM(B43:E43),$E$18)),IF(ABS(SUM(B43:C43))>ABS(SUM(D43:E43)),СРВЗВЕШ($B$18:$C$18,B43:C43),IF(D43=0,$E$18,IF(OR(SUM(B43:D43)>0,ABS(SUM(B43:C43))<ABS(SUM(D43:E43))),($D$18*SUM(B43:D43)+$E$18*E43)/SUM(B43:E43)))),IF(ABS(SUM(B43:D43))>ABS(E43),СРВЗВЕШ($B$18:$D$18,B43:D43),$E$18),IF(ABS(SUM(B43:D43))>ABS(E43),($B$18*SUM(B43:C43)+$D$18*D43)/SUM(B43:D43),$E$18),IF(ABS(B43)>ABS(SUM(C43:D43)),($B$18*SUM(B43:D43)+$E$18*E43)/SUM(B43:E43),$D$18),IF(ABS(B43)>ABS(SUM(C43:D43)),($B$18*B43+$C$18*C43+$E$18*E43)/SUM(B43,C43,E43),$D$18)))) -> 82.25 | K43: TRUE
B44: 3 | C44: 1 | D44: -4 | E44: -1 | H44: =E18 -> 85 | I44: =IF(ОДИНАКЗНАК(B44:E44),1,IF(ОДИНАКЗНАК(C44:E44),2,IF(AND(ОДИНАКЗНАК(B44:C44),ОДИНАКЗНАК(D44:E44)),3,IF(ОДИНАКЗНАК(B44:D44),4,IF(AND(NOT(ОДИНАКЗНАК(B44:C44)),NOT(ОДИНАКЗНАК(C44:D44))),5,IF(AND(NOT(ОДИНАКЗНАК(B44:C44)),ОДИНАКЗНАК(C44:D44)),6,7)))))) -> 3 | J44: =IF(SUM(B44:E44)=0,"вне рынка",IF(SUM(B44:D44)=0,$E$18,CHOOSE(I44,СРВЗВЕШ($B$18:$E$18,B44:E44),IF(ABS(B44)>ABS(SUM(C44:E44)),$B$18,IF(ABS(B44)<ABS(SUM(C44:D44)),($D$18*SUM(B44:D44)+$E$18*E44)/SUM(B44:E44),$E$18)),IF(ABS(SUM(B44:C44))>ABS(SUM(D44:E44)),СРВЗВЕШ($B$18:$C$18,B44:C44),IF(D44=0,$E$18,IF(OR(SUM(B44:D44)>0,ABS(SUM(B44:C44))<ABS(SUM(D44:E44))),($D$18*SUM(B44:D44)+$E$18*E44)/SUM(B44:E44)))),IF(ABS(SUM(B44:D44))>ABS(E44),СРВЗВЕШ($B$18:$D$18,B44:D44),$E$18),IF(ABS(SUM(B44:D44))>ABS(E44),($B$18*SUM(B44:C44)+$D$18*D44)/SUM(B44:D44),$E$18),IF(ABS(B44)>ABS(SUM(C44:D44)),($B$18*SUM(B44:D44)+$E$18*E44)/SUM(B44:E44),$D$18),IF(ABS(B44)>ABS(SUM(C44:D44)),($B$18*B44+$C$18*C44+$E$18*E44)/SUM(B44,C44,E44),$D$18)))) -> 85 | K44: TRUE
B45: 3 | C45: 1 | D45: -5 | E45: -1 | H45: =(D18*(B45+C45+D45)+E18*E45)/(B45+C45+D45+E45) -> 84.5 | I45: =IF(ОДИНАКЗНАК(B45:E45),1,IF(ОДИНАКЗНАК(C45:E45),2,IF(AND(ОДИНАКЗНАК(B45:C45),ОДИНАКЗНАК(D45:E45)),3,IF(ОДИНАКЗНАК(B45:D45),4,IF(AND(NOT(ОДИНАКЗНАК(B45:C45)),NOT(ОДИНАКЗНАК(C45:D45))),5,IF(AND(NOT(ОДИНАКЗНАК(B45:C45)),ОДИНАКЗНАК(C45:D45)),6,7)))))) -> 3 | J45: =IF(SUM(B45:E45)=0,"вне рынка",IF(SUM(B45:D45)=0,$E$18,CHOOSE(I45,СРВЗВЕШ($B$18:$E$18,B45:E45),IF(ABS(B45)>ABS(SUM(C45:E45)),$B$18,IF(ABS(B45)<ABS(SUM(C45:D45)),($D$18*SUM(B45:D45)+$E$18*E45)/SUM(B45:E45),$E$18)),IF(ABS(SUM(B45:C45))>ABS(SUM(D45:E45)),СРВЗВЕШ($B$18:$C$18,B45:C45),IF(D45=0,$E$18,IF(OR(SUM(B45:D45)>0,ABS(SUM(B45:C45))<ABS(SUM(D45:E45))),($D$18*SUM(B45:D45)+$E$18*E45)/SUM(B45:E45)))),IF(ABS(SUM(B45:D45))>ABS(E45),СРВЗВЕШ($B$18:$D$18,B45:D45),$E$18),IF(ABS(SUM(B45:D45))>ABS(E45),($B$18*SUM(B45:C45)+$D$18*D45)/SUM(B45:D45),$E$18),IF(ABS(B45)>ABS(SUM(C45:D45)),($B$18*SUM(B45:D45)+$E$18*E45)/SUM(B45:E45),$D$18),IF(ABS(B45)>ABS(SUM(C45:D45)),($B$18*B45+$C$18*C45+$E$18*E45)/SUM(B45,C45,E45),$D$18)))) -> 84.5 | K45: TRUE
B46: 3 | C46: 1 | D46: -3 | E46: -1 | H46: =IF(SUM(B46:E46)=0,"вне рынка") -> вне рынка | I46: =IF(ОДИНАКЗНАК(B46:E46),1,IF(ОДИНАКЗНАК(C46:E46),2,IF(AND(ОДИНАКЗНАК(B46:C46),ОДИНАКЗНАК(D46:E46)),3,IF(ОДИНАКЗНАК(B46:D46),4,IF(AND(NOT(ОДИНАКЗНАК(B46:C46)),NOT(ОДИНАКЗНАК(C46:D46))),5,IF(AND(NOT(ОДИНАКЗНАК(B46:C46)),ОДИНАКЗНАК(C46:D46)),6,7)))))) -> 3 | J46: =IF(SUM(B46:E46)=0,"вне рынка",IF(SUM(B46:D46)=0,$E$18,CHOOSE(I46,СРВЗВЕШ($B$18:$E$18,B46:E46),IF(ABS(B46)>ABS(SUM(C46:E46)),$B$18,IF(ABS(B46)<ABS(SUM(C46:D46)),($D$18*SUM(B46:D46)+$E$18*E46)/SUM(B46:E46),$E$18)),IF(ABS(SUM(B46:C46))>ABS(SUM(D46:E46)),СРВЗВЕШ($B$18:$C$18,B46:C46),IF(D46=0,$E$18,IF(OR(SUM(B46:D46)>0,ABS(SUM(B46:C46))<ABS(SUM(D46:E46))),($D$18*SUM(B46:D46)+$E$18*E46)/SUM(B46:E46)))),IF(ABS(SUM(B46:D46))>ABS(E46),СРВЗВЕШ($B$18:$D$18,B46:D46),$E$18),IF(ABS(SUM(B46:D46))>ABS(E46),($B$18*SUM(B46:C46)+$D$18*D46)/SUM(B46:D46),$E$18),IF(ABS(B46)>ABS(SUM(C46:D46)),($B$18*SUM(B46:D46)+$E$18*E46)/SUM(B46:E46),$D$18),IF(ABS(B46)>ABS(SUM(C46:D46)),($B$18*B46+$C$18*C46+$E$18*E46)/SUM(B46,C46,E46),$D$18)))) -> вне рынка | K46: TRUE
B47: 3 | C47: 1 | D47: 1 | E47: -5 | H47: =IF(SUM(B47:E47)=0,"вне рынка") -> вне рынка | I47: =IF(ОДИНАКЗНАК(B47:E47),1,IF(ОДИНАКЗНАК(C47:E47),2,IF(AND(ОДИНАКЗНАК(B47:C47),ОДИНАКЗНАК(D47:E47)),3,IF(ОДИНАКЗНАК(B47:D47),4,IF(AND(NOT(ОДИНАКЗНАК(B47:C47)),NOT(ОДИНАКЗНАК(C47:D47))),5,IF(AND(NOT(ОДИНАКЗНАК(B47:C47)),ОДИНАКЗНАК(C47:D47)),6,7)))))) -> 4 | J47: =IF(SUM(B47:E47)=0,"вне рынка",IF(SUM(B47:D47)=0,$E$18,CHOOSE(I47,СРВЗВЕШ($B$18:$E$18,B47:E47),IF(ABS(B47)>ABS(SUM(C47:E47)),$B$18,IF(ABS(B47)<ABS(SUM(C47:D47)),($D$18*SUM(B47:D47)+$E$18*E47)/SUM(B47:E47),$E$18)),IF(ABS(SUM(B47:C47))>ABS(SUM(D47:E47)),СРВЗВЕШ($B$18:$C$18,B47:C47),IF(D47=0,$E$18,IF(OR(SUM(B47:D47)>0,ABS(SUM(B47:C47))<ABS(SUM(D47:E47))),($D$18*SUM(B47:D47)+$E$18*E47)/SUM(B47:E47)))),IF(ABS(SUM(B47:D47))>ABS(E47),СРВЗВЕШ($B$18:$D$18,B47:D47),$E$18),IF(ABS(SUM(B47:D47))>ABS(E47),($B$18*SUM(B47:C47)+$D$18*D47)/SUM(B47:D47),$E$18),IF(ABS(B47)>ABS(SUM(C47:D47)),($B$18*SUM(B47:D47)+$E$18*E47)/SUM(B47:E47),$D$18),IF(ABS(B47)>ABS(SUM(C47:D47)),($B$18*B47+$C$18*C47+$E$18*E47)/SUM(B47,C47,E47),$D$18)))) -> вне рынка | K47: TRUE
B48: 3 | C48: 1 | D48: 1 | E48: -2 | H48: =(B18*B48+C18*C48+D18*D48+E18*E48*0)/(B48+C48+D48+E48*0) -> 82.6 | I48: =IF(ОДИНАКЗНАК(B48:E48),1,IF(ОДИНАКЗНАК(C48:E48),2,IF(AND(ОДИНАКЗНАК(B48:C48),ОДИНАКЗНАК(D48:E48)),3,IF(ОДИНАКЗНАК(B48:D48),4,IF(AND(NOT(ОДИНАКЗНАК(B48:C48)),NOT(ОДИНАКЗНАК(C48:D48))),5,IF(AND(NOT(ОДИНАКЗНАК(B48:C48)),ОДИНАКЗНАК(C48:D48)),6,7)))))) -> 4 | J48: =IF(SUM(B48:E48)=0,"вне рынка",IF(SUM(B48:D48)=0,$E$18,CHOOSE(I48,СРВЗВЕШ($B$18:$E$18,B48:E48),IF(ABS(B48)>ABS(SUM(C48:E48)),$B$18,IF(ABS(B48)<ABS(SUM(C48:D48)),($D$18*SUM(B48:D48)+$E$18*E48)/SUM(B48:E48),$E$18)),IF(ABS(SUM(B48:C48))>ABS(SUM(D48:E48)),СРВЗВЕШ($B$18:$C$18,B48:C48),IF(D48=0,$E$18,IF(OR(SUM(B48:D48)>0,ABS(SUM(B48:C48))<ABS(SUM(D48:E48))),($D$18*SUM(B48:D48)+$E$18*E48)/SUM(B48:E48)))),IF(ABS(SUM(B48:D48))>ABS(E48),СРВЗВЕШ($B$18:$D$18,B48:D48),$E$18),IF(ABS(SUM(B48:D48))>ABS(E48),($B$18*SUM(B48:C48)+$D$18*D48)/SUM(B48:D48),$E$18),IF(ABS(B48)>ABS(SUM(C48:D48)),($B$18*SUM(B48:D48)+$E$18*E48)/SUM(B48:E48),$D$18),IF(ABS(B48)>ABS(SUM(C48:D48)),($B$18*B48+$C$18*C48+$E$18*E48)/SUM(B48,C48,E48),$D$18)))) -> 82.59999847 | K48: TRUE
B49: 3 | C49: 1 | D49: 1 | E49: -6 | H49: =(E18*(B49+C49+D49+E49)/(B49+C49+D49+E49)) -> 85 | I49: =IF(ОДИНАКЗНАК(B49:E49),1,IF(ОДИНАКЗНАК(C49:E49),2,IF(AND(ОДИНАКЗНАК(B49:C49),ОДИНАКЗНАК(D49:E49)),3,IF(ОДИНАКЗНАК(B49:D49),4,IF(AND(NOT(ОДИНАКЗНАК(B49:C49)),NOT(ОДИНАКЗНАК(C49:D49))),5,IF(AND(NOT(ОДИНАКЗНАК(B49:C49)),ОДИНАКЗНАК(C49:D49)),6,7)))))) -> 4 | J49: =IF(SUM(B49:E49)=0,"вне рынка",IF(SUM(B49:D49)=0,$E$18,CHOOSE(I49,СРВЗВЕШ($B$18:$E$18,B49:E49),IF(ABS(B49)>ABS(SUM(C49:E49)),$B$18,IF(ABS(B49)<ABS(SUM(C49:D49)),($D$18*SUM(B49:D49)+$E$18*E49)/SUM(B49:E49),$E$18)),IF(ABS(SUM(B49:C49))>ABS(SUM(D49:E49)),СРВЗВЕШ($B$18:$C$18,B49:C49),IF(D49=0,$E$18,IF(OR(SUM(B49:D49)>0,ABS(SUM(B49:C49))<ABS(SUM(D49:E49))),($D$18*SUM(B49:D49)+$E$18*E49)/SUM(B49:E49)))),IF(ABS(SUM(B49:D49))>ABS(E49),СРВЗВЕШ($B$18:$D$18,B49:D49),$E$18),IF(ABS(SUM(B49:D49))>ABS(E49),($B$18*SUM(B49:C49)+$D$18*D49)/SUM(B49:D49),$E$18),IF(ABS(B49)>ABS(SUM(C49:D49)),($B$18*SUM(B49:D49)+$E$18*E49)/SUM(B49:E49),$D$18),IF(ABS(B49)>ABS(SUM(C49:D49)),($B$18*B49+$C$18*C49+$E$18*E49)/SUM(B49,C49,E49),$D$18)))) -> 85 | K49: TRUE
B50: 3 | C50: -2 | D50: 1 | E50: -2 | H50: =IF(SUM(B50:E50)=0,"вне рынка") -> вне рынка | I50: =IF(ОДИНАКЗНАК(B50:E50),1,IF(ОДИНАКЗНАК(C50:E50),2,IF(AND(ОДИНАКЗНАК(B50:C50),ОДИНАКЗНАК(D50:E50)),3,IF(ОДИНАКЗНАК(B50:D50),4,IF(AND(NOT(ОДИНАКЗНАК(B50:C50)),NOT(ОДИНАКЗНАК(C50:D50))),5,IF(AND(NOT(ОДИНАКЗНАК(B50:C50)),ОДИНАКЗНАК(C50:D50)),6,7)))))) -> 5 | J50: =IF(SUM(B50:E50)=0,"вне рынка",IF(SUM(B50:D50)=0,$E$18,CHOOSE(I50,СРВЗВЕШ($B$18:$E$18,B50:E50),IF(ABS(B50)>ABS(SUM(C50:E50)),$B$18,IF(ABS(B50)<ABS(SUM(C50:D50)),($D$18*SUM(B50:D50)+$E$18*E50)/SUM(B50:E50),$E$18)),IF(ABS(SUM(B50:C50))>ABS(SUM(D50:E50)),СРВЗВЕШ($B$18:$C$18,B50:C50),IF(D50=0,$E$18,IF(OR(SUM(B50:D50)>0,ABS(SUM(B50:C50))<ABS(SUM(D50:E50))),($D$18*SUM(B50:D50)+$E$18*E50)/SUM(B50:E50)))),IF(ABS(SUM(B50:D50))>ABS(E50),СРВЗВЕШ($B$18:$D$18,B50:D50),$E$18),IF(ABS(SUM(B50:D50))>ABS(E50),($B$18*SUM(B50:C50)+$D$18*D50)/SUM(B50:D50),$E$18),IF(ABS(B50)>ABS(SUM(C50:D50)),($B$18*SUM(B50:D50)+$E$18*E50)/SUM(B50:E50),$D$18),IF(ABS(B50)>ABS(SUM(C50:D50)),($B$18*B50+$C$18*C50+$E$18*E50)/SUM(B50,C50,E50),$D$18)))) -> вне рынка | K50: TRUE
B51: 3 | C51: -2 | D51: 1 | E51: -1 | H51: =(B18*(B51+C51)+C18*C51*0+D18*D51+E18*E51*0)/((B51+C51)+C51*0+D51+E51*0) -> 83 | I51: =IF(ОДИНАКЗНАК(B51:E51),1,IF(ОДИНАКЗНАК(C51:E51),2,IF(AND(ОДИНАКЗНАК(B51:C51),ОДИНАКЗНАК(D51:E51)),3,IF(ОДИНАКЗНАК(B51:D51),4,IF(AND(NOT(ОДИНАКЗНАК(B51:C51)),NOT(ОДИНАКЗНАК(C51:D51))),5,IF(AND(NOT(ОДИНАКЗНАК(B51:C51)),ОДИНАКЗНАК(C51:D51)),6,7)))))) -> 5 | J51: =IF(SUM(B51:E51)=0,"вне рынка",IF(SUM(B51:D51)=0,$E$18,CHOOSE(I51,СРВЗВЕШ($B$18:$E$18,B51:E51),IF(ABS(B51)>ABS(SUM(C51:E51)),$B$18,IF(ABS(B51)<ABS(SUM(C51:D51)),($D$18*SUM(B51:D51)+$E$18*E51)/SUM(B51:E51),$E$18)),IF(ABS(SUM(B51:C51))>ABS(SUM(D51:E51)),СРВЗВЕШ($B$18:$C$18,B51:C51),IF(D51=0,$E$18,IF(OR(SUM(B51:D51)>0,ABS(SUM(B51:C51))<ABS(SUM(D51:E51))),($D$18*SUM(B51:D51)+$E$18*E51)/SUM(B51:E51)))),IF(ABS(SUM(B51:D51))>ABS(E51),СРВЗВЕШ($B$18:$D$18,B51:D51),$E$18),IF(ABS(SUM(B51:D51))>ABS(E51),($B$18*SUM(B51:C51)+$D$18*D51)/SUM(B51:D51),$E$18),IF(ABS(B51)>ABS(SUM(C51:D51)),($B$18*SUM(B51:D51)+$E$18*E51)/SUM(B51:E51),$D$18),IF(ABS(B51)>ABS(SUM(C51:D51)),($B$18*B51+$C$18*C51+$E$18*E51)/SUM(B51,C51,E51),$D$18)))) -> 83 | K51: TRUE
B52: 3 | C52: -2 | D52: 1 | E52: -3 | H52: =(E18*(B52+C52+D52+E52))/(B52+C52+D52+E52) -> 85 | I52: =IF(ОДИНАКЗНАК(B52:E52),1,IF(ОДИНАКЗНАК(C52:E52),2,IF(AND(ОДИНАКЗНАК(B52:C52),ОДИНАКЗНАК(D52:E52)),3,IF(ОДИНАКЗНАК(B52:D52),4,IF(AND(NOT(ОДИНАКЗНАК(B52:C52)),NOT(ОДИНАКЗНАК(C52:D52))),5,IF(AND(NOT(ОДИНАКЗНАК(B52:C52)),ОДИНАКЗНАК(C52:D52)),6,7)))))) -> 5 | J52: =IF(SUM(B52:E52)=0,"вне рынка",IF(SUM(B52:D52)=0,$E$18,CHOOSE(I52,СРВЗВЕШ($B$18:$E$18,B52:E52),IF(ABS(B52)>ABS(SUM(C52:E52)),$B$18,IF(ABS(B52)<ABS(SUM(C52:D52)),($D$18*SUM(B52:D52)+$E$18*E52)/SUM(B52:E52),$E$18)),IF(ABS(SUM(B52:C52))>ABS(SUM(D52:E52)),СРВЗВЕШ($B$18:$C$18,B52:C52),IF(D52=0,$E$18,IF(OR(SUM(B52:D52)>0,ABS(SUM(B52:C52))<ABS(SUM(D52:E52))),($D$18*SUM(B52:D52)+$E$18*E52)/SUM(B52:E52)))),IF(ABS(SUM(B52:D52))>ABS(E52),СРВЗВЕШ($B$18:$D$18,B52:D52),$E$18),IF(ABS(SUM(B52:D52))>ABS(E52),($B$18*SUM(B52:C52)+$D$18*D52)/SUM(B52:D52),$E$18),IF(ABS(B52)>ABS(SUM(C52:D52)),($B$18*SUM(B52:D52)+$E$18*E52)/SUM(B52:E52),$D$18),IF(ABS(B52)>ABS(SUM(C52:D52)),($B$18*B52+$C$18*C52+$E$18*E52)/SUM(B52,C52,E52),$D$18)))) -> 85 | K52: TRUE
B53: -3 | C53: 2 | D53: 1 | E53: -1 | H53: =(B18*(B53+C53+D53)+C18*(B53+C53+D53)+D18*(B53+C53+D53)+E18*E53)/(B53+C53+D53+E53) -> 85 | I53: =IF(ОДИНАКЗНАК(B53:E53),1,IF(ОДИНАКЗНАК(C53:E53),2,IF(AND(ОДИНАКЗНАК(B53:C53),ОДИНАКЗНАК(D53:E53)),3,IF(ОДИНАКЗНАК(B53:D53),4,IF(AND(NOT(ОДИНАКЗНАК(B53:C53)),NOT(ОДИНАКЗНАК(C53:D53))),5,IF(AND(NOT(ОДИНАКЗНАК(B53:C53)),ОДИНАКЗНАК(C53:D53)),6,7)))))) -> 6 | J53: =IF(SUM(B53:E53)=0,"вне рынка",IF(SUM(B53:D53)=0,$E$18,CHOOSE(I53,СРВЗВЕШ($B$18:$E$18,B53:E53),IF(ABS(B53)>ABS(SUM(C53:E53)),$B$18,IF(ABS(B53)<ABS(SUM(C53:D53)),($D$18*SUM(B53:D53)+$E$18*E53)/SUM(B53:E53),$E$18)),IF(ABS(SUM(B53:C53))>ABS(SUM(D53:E53)),СРВЗВЕШ($B$18:$C$18,B53:C53),IF(D53=0,$E$18,IF(OR(SUM(B53:D53)>0,ABS(SUM(B53:C53))<ABS(SUM(D53:E53))),($D$18*SUM(B53:D53)+$E$18*E53)/SUM(B53:E53)))),IF(ABS(SUM(B53:D53))>ABS(E53),СРВЗВЕШ($B$18:$D$18,B53:D53),$E$18),IF(ABS(SUM(B53:D53))>ABS(E53),($B$18*SUM(B53:C53)+$D$18*D53)/SUM(B53:D53),$E$18),IF(ABS(B53)>ABS(SUM(C53:D53)),($B$18*SUM(B53:D53)+$E$18*E53)/SUM(B53:E53),$D$18),IF(ABS(B53)>ABS(SUM(C53:D53)),($B$18*B53+$C$18*C53+$E$18*E53)/SUM(B53,C53,E53),$D$18)))) -> 85 | K53: TRUE
B54: -4 | C54: 2 | D54: 1 | E54: -1 | H54: =(B18*(B54+C54+D54)+C18*C54*0+D18*D54*0+E18*E54)/(B54+C54+D54+E54) -> 83.5 | I54: =IF(ОДИНАКЗНАК(B54:E54),1,IF(ОДИНАКЗНАК(C54:E54),2,IF(AND(ОДИНАКЗНАК(B54:C54),ОДИНАКЗНАК(D54:E54)),3,IF(ОДИНАКЗНАК(B54:D54),4,IF(AND(NOT(ОДИНАКЗНАК(B54:C54)),NOT(ОДИНАКЗНАК(C54:D54))),5,IF(AND(NOT(ОДИНАКЗНАК(B54:C54)),ОДИНАКЗНАК(C54:D54)),6,7)))))) -> 6 | J54: =IF(SUM(B54:E54)=0,"вне рынка",IF(SUM(B54:D54)=0,$E$18,CHOOSE(I54,СРВЗВЕШ($B$18:$E$18,B54:E54),IF(ABS(B54)>ABS(SUM(C54:E54)),$B$18,IF(ABS(B54)<ABS(SUM(C54:D54)),($D$18*SUM(B54:D54)+$E$18*E54)/SUM(B54:E54),$E$18)),IF(ABS(SUM(B54:C54))>ABS(SUM(D54:E54)),СРВЗВЕШ($B$18:$C$18,B54:C54),IF(D54=0,$E$18,IF(OR(SUM(B54:D54)>0,ABS(SUM(B54:C54))<ABS(SUM(D54:E54))),($D$18*SUM(B54:D54)+$E$18*E54)/SUM(B54:E54)))),IF(ABS(SUM(B54:D54))>ABS(E54),СРВЗВЕШ($B$18:$D$18,B54:D54),$E$18),IF(ABS(SUM(B54:D54))>ABS(E54),($B$18*SUM(B54:C54)+$D$18*D54)/SUM(B54:D54),$E$18),IF(ABS(B54)>ABS(SUM(C54:D54)),($B$18*SUM(B54:D54)+$E$18*E54)/SUM(B54:E54),$D$18),IF(ABS(B54)>ABS(SUM(C54:D54)),($B$18*B54+$C$18*C54+$E$18*E54)/SUM(B54,C54,E54),$D$18)))) -> 83.5 | K54: TRUE
B55: -4 | C55: 2 | D55: 3 | E55: -1 | H55: =IF(SUM(B55:E55)=0,"вне рынка") -> вне рынка | I55: =IF(ОДИНАКЗНАК(B55:E55),1,IF(ОДИНАКЗНАК(C55:E55),2,IF(AND(ОДИНАКЗНАК(B55:C55),ОДИНАКЗНАК(D55:E55)),3,IF(ОДИНАКЗНАК(B55:D55),4,IF(AND(NOT(ОДИНАКЗНАК(B55:C55)),NOT(ОДИНАКЗНАК(C55:D55))),5,IF(AND(NOT(ОДИНАКЗНАК(B55:C55)),ОДИНАКЗНАК(C55:D55)),6,7)))))) -> 6 | J55: =IF(SUM(B55:E55)=0,"вне рынка",IF(SUM(B55:D55)=0,$E$18,CHOOSE(I55,СРВЗВЕШ($B$18:$E$18,B55:E55),IF(ABS(B55)>ABS(SUM(C55:E55)),$B$18,IF(ABS(B55)<ABS(SUM(C55:D55)),($D$18*SUM(B55:D55)+$E$18*E55)/SUM(B55:E55),$E$18)),IF(ABS(SUM(B55:C55))>ABS(SUM(D55:E55)),СРВЗВЕШ($B$18:$C$18,B55:C55),IF(D55=0,$E$18,IF(OR(SUM(B55:D55)>0,ABS(SUM(B55:C55))<ABS(SUM(D55:E55))),($D$18*SUM(B55:D55)+$E$18*E55)/SUM(B55:E55)))),IF(ABS(SUM(B55:D55))>ABS(E55),СРВЗВЕШ($B$18:$D$18,B55:D55),$E$18),IF(ABS(SUM(B55:D55))>ABS(E55),($B$18*SUM(B55:C55)+$D$18*D55)/SUM(B55:D55),$E$18),IF(ABS(B55)>ABS(SUM(C55:D55)),($B$18*SUM(B55:D55)+$E$18*E55)/SUM(B55:E55),$D$18),IF(ABS(B55)>ABS(SUM(C55:D55)),($B$18*B55+$C$18*C55+$E$18*E55)/SUM(B55,C55,E55),$D$18)))) -> вне рынка | K55: TRUE
B56: -4 | C56: 2 | D56: 4 | E56: -1 | H56: =(B18*B56*0+C18*C56*0+D18*(B56+C56+D56+E56)+E18*E56*0)/(B56+C56+D56+E56) -> 84 | I56: =IF(ОДИНАКЗНАК(B56:E56),1,IF(ОДИНАКЗНАК(C56:E56),2,IF(AND(ОДИНАКЗНАК(B56:C56),ОДИНАКЗНАК(D56:E56)),3,IF(ОДИНАКЗНАК(B56:D56),4,IF(AND(NOT(ОДИНАКЗНАК(B56:C56)),NOT(ОДИНАКЗНАК(C56:D56))),5,IF(AND(NOT(ОДИНАКЗНАК(B56:C56)),ОДИНАКЗНАК(C56:D56)),6,7)))))) -> 6 | J56: =IF(SUM(B56:E56)=0,"вне рынка",IF(SUM(B56:D56)=0,$E$18,CHOOSE(I56,СРВЗВЕШ($B$18:$E$18,B56:E56),IF(ABS(B56)>ABS(SUM(C56:E56)),$B$18,IF(ABS(B56)<ABS(SUM(C56:D56)),($D$18*SUM(B56:D56)+$E$18*E56)/SUM(B56:E56),$E$18)),IF(ABS(SUM(B56:C56))>ABS(SUM(D56:E56)),СРВЗВЕШ($B$18:$C$18,B56:C56),IF(D56=0,$E$18,IF(OR(SUM(B56:D56)>0,ABS(SUM(B56:C56))<ABS(SUM(D56:E56))),($D$18*SUM(B56:D56)+$E$18*E56)/SUM(B56:E56)))),IF(ABS(SUM(B56:D56))>ABS(E56),СРВЗВЕШ($B$18:$D$18,B56:D56),$E$18),IF(ABS(SUM(B56:D56))>ABS(E56),($B$18*SUM(B56:C56)+$D$18*D56)/SUM(B56:D56),$E$18),IF(ABS(B56)>ABS(SUM(C56:D56)),($B$18*SUM(B56:D56)+$E$18*E56)/SUM(B56:E56),$D$18),IF(ABS(B56)>ABS(SUM(C56:D56)),($B$18*B56+$C$18*C56+$E$18*E56)/SUM(B56,C56,E56),$D$18)))) -> 84 | K56: TRUE
B57: 3 | C57: -2 | D57: -1 | E57: 1 | H57: =(B18*(B57+C57+D57)+C18*(B57+C57+D57)+D18*(B57+C57+D57)+E18*(B57+C57+D57+E57))/(B57+C57+D57+E57) -> 85 | I57: =IF(ОДИНАКЗНАК(B57:E57),1,IF(ОДИНАКЗНАК(C57:E57),2,IF(AND(ОДИНАКЗНАК(B57:C57),ОДИНАКЗНАК(D57:E57)),3,IF(ОДИНАКЗНАК(B57:D57),4,IF(AND(NOT(ОДИНАКЗНАК(B57:C57)),NOT(ОДИНАКЗНАК(C57:D57))),5,IF(AND(NOT(ОДИНАКЗНАК(B57:C57)),ОДИНАКЗНАК(C57:D57)),6,7)))))) -> 6 | J57: =IF(SUM(B57:E57)=0,"вне рынка",IF(SUM(B57:D57)=0,$E$18,CHOOSE(I57,СРВЗВЕШ($B$18:$E$18,B57:E57),IF(ABS(B57)>ABS(SUM(C57:E57)),$B$18,IF(ABS(B57)<ABS(SUM(C57:D57)),($D$18*SUM(B57:D57)+$E$18*E57)/SUM(B57:E57),$E$18)),IF(ABS(SUM(B57:C57))>ABS(SUM(D57:E57)),СРВЗВЕШ($B$18:$C$18,B57:C57),IF(D57=0,$E$18,IF(OR(SUM(B57:D57)>0,ABS(SUM(B57:C57))<ABS(SUM(D57:E57))),($D$18*SUM(B57:D57)+$E$18*E57)/SUM(B57:E57)))),IF(ABS(SUM(B57:D57))>ABS(E57),СРВЗВЕШ($B$18:$D$18,B57:D57),$E$18),IF(ABS(SUM(B57:D57))>ABS(E57),($B$18*SUM(B57:C57)+$D$18*D57)/SUM(B57:D57),$E$18),IF(ABS(B57)>ABS(SUM(C57:D57)),($B$18*SUM(B57:D57)+$E$18*E57)/SUM(B57:E57),$D$18),IF(ABS(B57)>ABS(SUM(C57:D57)),($B$18*B57+$C$18*C57+$E$18*E57)/SUM(B57,C57,E57),$D$18)))) -> 85 | K57: TRUE | L57: тут 4ре условия: 1е: 3 -1 -1 1,среднее (B18*(3-1-1)+E18*1)/(3-1-1+1). 2е: 3 -1 -2 1, когда сумма первых трех равна нулю,то еслина средняя по Е18. 3е: 3 -1 -3 1 сумма равна нулю.ВНЕ РЫНКА.4е: 3 -1 -4 1, когда продаж больше, то есть среднее равно D18. так как вначале купили 3, потом продали 1, потом допродали из 4х 2ва и продали не имея 2, а так как потом откупили всего 1, то в итоге у нас осталась одна продажа по D18.
B58: 3 | C58: -1 | D58: -1 | E58: 1 | H58: =(B18*(B58+C58+D58)+C18*C58*0+D18*D58*0+E18*E58)/(B58+C58+D58+E58) -> 83.5 | I58: =IF(ОДИНАКЗНАК(B58:E58),1,IF(ОДИНАКЗНАК(C58:E58),2,IF(AND(ОДИНАКЗНАК(B58:C58),ОДИНАКЗНАК(D58:E58)),3,IF(ОДИНАКЗНАК(B58:D58),4,IF(AND(NOT(ОДИНАКЗНАК(B58:C58)),NOT(ОДИНАКЗНАК(C58:D58))),5,IF(AND(NOT(ОДИНАКЗНАК(B58:C58)),ОДИНАКЗНАК(C58:D58)),6,7)))))) -> 6 | J58: =IF(SUM(B58:E58)=0,"вне рынка",IF(SUM(B58:D58)=0,$E$18,CHOOSE(I58,СРВЗВЕШ($B$18:$E$18,B58:E58),IF(ABS(B58)>ABS(SUM(C58:E58)),$B$18,IF(ABS(B58)<ABS(SUM(C58:D58)),($D$18*SUM(B58:D58)+$E$18*E58)/SUM(B58:E58),$E$18)),IF(ABS(SUM(B58:C58))>ABS(SUM(D58:E58)),СРВЗВЕШ($B$18:$C$18,B58:C58),IF(D58=0,$E$18,IF(OR(SUM(B58:D58)>0,ABS(SUM(B58:C58))<ABS(SUM(D58:E58))),($D$18*SUM(B58:D58)+$E$18*E58)/SUM(B58:E58)))),IF(ABS(SUM(B58:D58))>ABS(E58),СРВЗВЕШ($B$18:$D$18,B58:D58),$E$18),IF(ABS(SUM(B58:D58))>ABS(E58),($B$18*SUM(B58:C58)+$D$18*D58)/SUM(B58:D58),$E$18),IF(ABS(B58)>ABS(SUM(C58:D58)),($B$18*SUM(B58:D58)+$E$18*E58)/SUM(B58:E58),$D$18),IF(ABS(B58)>ABS(SUM(C58:D58)),($B$18*B58+$C$18*C58+$E$18*E58)/SUM(B58,C58,E58),$D$18)))) -> 83.5 | K58: TRUE
B59: 3 | C59: -2 | D59: -2 | E59: 1 | H59: =IF(SUM(B59:E59)=0,"вне рынка") -> вне рынка | I59: =IF(ОДИНАКЗНАК(B59:E59),1,IF(ОДИНАКЗНАК(C59:E59),2,IF(AND(ОДИНАКЗНАК(B59:C59),ОДИНАКЗНАК(D59:E59)),3,IF(ОДИНАКЗНАК(B59:D59),4,IF(AND(NOT(ОДИНАКЗНАК(B59:C59)),NOT(ОДИНАКЗНАК(C59:D59))),5,IF(AND(NOT(ОДИНАКЗНАК(B59:C59)),ОДИНАКЗНАК(C59:D59)),6,7)))))) -> 6 | J59: =IF(SUM(B59:E59)=0,"вне рынка",IF(SUM(B59:D59)=0,$E$18,CHOOSE(I59,СРВЗВЕШ($B$18:$E$18,B59:E59),IF(ABS(B59)>ABS(SUM(C59:E59)),$B$18,IF(ABS(B59)<ABS(SUM(C59:D59)),($D$18*SUM(B59:D59)+$E$18*E59)/SUM(B59:E59),$E$18)),IF(ABS(SUM(B59:C59))>ABS(SUM(D59:E59)),СРВЗВЕШ($B$18:$C$18,B59:C59),IF(D59=0,$E$18,IF(OR(SUM(B59:D59)>0,ABS(SUM(B59:C59))<ABS(SUM(D59:E59))),($D$18*SUM(B59:D59)+$E$18*E59)/SUM(B59:E59)))),IF(ABS(SUM(B59:D59))>ABS(E59),СРВЗВЕШ($B$18:$D$18,B59:D59),$E$18),IF(ABS(SUM(B59:D59))>ABS(E59),($B$18*SUM(B59:C59)+$D$18*D59)/SUM(B59:D59),$E$18),IF(ABS(B59)>ABS(SUM(C59:D59)),($B$18*SUM(B59:D59)+$E$18*E59)/SUM(B59:E59),$D$18),IF(ABS(B59)>ABS(SUM(C59:D59)),($B$18*B59+$C$18*C59+$E$18*E59)/SUM(B59,C59,E59),$D$18)))) -> вне рынка | K59: TRUE
B60: 3 | C60: -2 | D60: -3 | E60: 1 | H60: =(B18*B60*0+C18*C60*0+D18*(B60+C60+D60+E60)+E18*E60*0)/(B60+C60+D60+E60) -> 84 | I60: =IF(ОДИНАКЗНАК(B60:E60),1,IF(ОДИНАКЗНАК(C60:E60),2,IF(AND(ОДИНАКЗНАК(B60:C60),ОДИНАКЗНАК(D60:E60)),3,IF(ОДИНАКЗНАК(B60:D60),4,IF(AND(NOT(ОДИНАКЗНАК(B60:C60)),NOT(ОДИНАКЗНАК(C60:D60))),5,IF(AND(NOT(ОДИНАКЗНАК(B60:C60)),ОДИНАКЗНАК(C60:D60)),6,7)))))) -> 6 | J60: =IF(SUM(B60:E60)=0,"вне рынка",IF(SUM(B60:D60)=0,$E$18,CHOOSE(I60,СРВЗВЕШ($B$18:$E$18,B60:E60),IF(ABS(B60)>ABS(SUM(C60:E60)),$B$18,IF(ABS(B60)<ABS(SUM(C60:D60)),($D$18*SUM(B60:D60)+$E$18*E60)/SUM(B60:E60),$E$18)),IF(ABS(SUM(B60:C60))>ABS(SUM(D60:E60)),СРВЗВЕШ($B$18:$C$18,B60:C60),IF(D60=0,$E$18,IF(OR(SUM(B60:D60)>0,ABS(SUM(B60:C60))<ABS(SUM(D60:E60))),($D$18*SUM(B60:D60)+$E$18*E60)/SUM(B60:E60)))),IF(ABS(SUM(B60:D60))>ABS(E60),СРВЗВЕШ($B$18:$D$18,B60:D60),$E$18),IF(ABS(SUM(B60:D60))>ABS(E60),($B$18*SUM(B60:C60)+$D$18*D60)/SUM(B60:D60),$E$18),IF(ABS(B60)>ABS(SUM(C60:D60)),($B$18*SUM(B60:D60)+$E$18*E60)/SUM(B60:E60),$D$18),IF(ABS(B60)>ABS(SUM(C60:D60)),($B$18*B60+$C$18*C60+$E$18*E60)/SUM(B60,C60,E60),$D$18)))) -> 84 | K60: TRUE
B61: -3 | C61: -1 | D61: 1 | E61: -1 | H61: =((((B18*B61+C18*C61)/(B61+C61)))*(B61+C61)+D18*D61*0+((E18*E61/E61)*E61))/(B61+C61+D61*0+E61) -> 82.8 | I61: =IF(ОДИНАКЗНАК(B61:E61),1,IF(ОДИНАКЗНАК(C61:E61),2,IF(AND(ОДИНАКЗНАК(B61:C61),ОДИНАКЗНАК(D61:E61)),3,IF(ОДИНАКЗНАК(B61:D61),4,IF(AND(NOT(ОДИНАКЗНАК(B61:C61)),NOT(ОДИНАКЗНАК(C61:D61))),5,IF(AND(NOT(ОДИНАКЗНАК(B61:C61)),ОДИНАКЗНАК(C61:D61)),6,7)))))) -> 7 | J61: =IF(SUM(B61:E61)=0,"вне рынка",IF(SUM(B61:D61)=0,$E$18,CHOOSE(I61,СРВЗВЕШ($B$18:$E$18,B61:E61),IF(ABS(B61)>ABS(SUM(C61:E61)),$B$18,IF(ABS(B61)<ABS(SUM(C61:D61)),($D$18*SUM(B61:D61)+$E$18*E61)/SUM(B61:E61),$E$18)),IF(ABS(SUM(B61:C61))>ABS(SUM(D61:E61)),СРВЗВЕШ($B$18:$C$18,B61:C61),IF(D61=0,$E$18,IF(OR(SUM(B61:D61)>0,ABS(SUM(B61:C61))<ABS(SUM(D61:E61))),($D$18*SUM(B61:D61)+$E$18*E61)/SUM(B61:E61)))),IF(ABS(SUM(B61:D61))>ABS(E61),СРВЗВЕШ($B$18:$D$18,B61:D61),$E$18),IF(ABS(SUM(B61:D61))>ABS(E61),($B$18*SUM(B61:C61)+$D$18*D61)/SUM(B61:D61),$E$18),IF(ABS(B61)>ABS(SUM(C61:D61)),($B$18*SUM(B61:D61)+$E$18*E61)/SUM(B61:E61),$D$18),IF(ABS(B61)>ABS(SUM(C61:D61)),($B$18*B61+$C$18*C61+$E$18*E61)/SUM(B61,C61,E61),$D$18)))) -> 82.8 | K61: TRUE
B62: -3 | C62: -2 | D62: 5 | E62: -1 | H62: =(B18*(B62+C62+D62)+C18*(B62+C62+D62)+D18*(B62+C62+D62)+E18*(B62+C62+D62+E62))/(B62+C62+D62+E62) -> 85 | I62: =IF(ОДИНАКЗНАК(B62:E62),1,IF(ОДИНАКЗНАК(C62:E62),2,IF(AND(ОДИНАКЗНАК(B62:C62),ОДИНАКЗНАК(D62:E62)),3,IF(ОДИНАКЗНАК(B62:D62),4,IF(AND(NOT(ОДИНАКЗНАК(B62:C62)),NOT(ОДИНАКЗНАК(C62:D62))),5,IF(AND(NOT(ОДИНАКЗНАК(B62:C62)),ОДИНАКЗНАК(C62:D62)),6,7)))))) -> 7 | J62: =IF(SUM(B62:E62)=0,"вне рынка",IF(SUM(B62:D62)=0,$E$18,CHOOSE(I62,СРВЗВЕШ($B$18:$E$18,B62:E62),IF(ABS(B62)>ABS(SUM(C62:E62)),$B$18,IF(ABS(B62)<ABS(SUM(C62:D62)),($D$18*SUM(B62:D62)+$E$18*E62)/SUM(B62:E62),$E$18)),IF(ABS(SUM(B62:C62))>ABS(SUM(D62:E62)),СРВЗВЕШ($B$18:$C$18,B62:C62),IF(D62=0,$E$18,IF(OR(SUM(B62:D62)>0,ABS(SUM(B62:C62))<ABS(SUM(D62:E62))),($D$18*SUM(B62:D62)+$E$18*E62)/SUM(B62:E62)))),IF(ABS(SUM(B62:D62))>ABS(E62),СРВЗВЕШ($B$18:$D$18,B62:D62),$E$18),IF(ABS(SUM(B62:D62))>ABS(E62),($B$18*SUM(B62:C62)+$D$18*D62)/SUM(B62:D62),$E$18),IF(ABS(B62)>ABS(SUM(C62:D62)),($B$18*SUM(B62:D62)+$E$18*E62)/SUM(B62:E62),$D$18),IF(ABS(B62)>ABS(SUM(C62:D62)),($B$18*B62+$C$18*C62+$E$18*E62)/SUM(B62,C62,E62),$D$18)))) -> 85 | K62: TRUE
B63: -3 | C63: -2 | D63: 6 | E63: -1 | H63: =IF(SUM(B63:E63)=0,"вне рынка") -> вне рынка | I63: =IF(ОДИНАКЗНАК(B63:E63),1,IF(ОДИНАКЗНАК(C63:E63),2,IF(AND(ОДИНАКЗНАК(B63:C63),ОДИНАКЗНАК(D63:E63)),3,IF(ОДИНАКЗНАК(B63:D63),4,IF(AND(NOT(ОДИНАКЗНАК(B63:C63)),NOT(ОДИНАКЗНАК(C63:D63))),5,IF(AND(NOT(ОДИНАКЗНАК(B63:C63)),ОДИНАКЗНАК(C63:D63)),6,7)))))) -> 7 | J63: =IF(SUM(B63:E63)=0,"вне рынка",IF(SUM(B63:D63)=0,$E$18,CHOOSE(I63,СРВЗВЕШ($B$18:$E$18,B63:E63),IF(ABS(B63)>ABS(SUM(C63:E63)),$B$18,IF(ABS(B63)<ABS(SUM(C63:D63)),($D$18*SUM(B63:D63)+$E$18*E63)/SUM(B63:E63),$E$18)),IF(ABS(SUM(B63:C63))>ABS(SUM(D63:E63)),СРВЗВЕШ($B$18:$C$18,B63:C63),IF(D63=0,$E$18,IF(OR(SUM(B63:D63)>0,ABS(SUM(B63:C63))<ABS(SUM(D63:E63))),($D$18*SUM(B63:D63)+$E$18*E63)/SUM(B63:E63)))),IF(ABS(SUM(B63:D63))>ABS(E63),СРВЗВЕШ($B$18:$D$18,B63:D63),$E$18),IF(ABS(SUM(B63:D63))>ABS(E63),($B$18*SUM(B63:C63)+$D$18*D63)/SUM(B63:D63),$E$18),IF(ABS(B63)>ABS(SUM(C63:D63)),($B$18*SUM(B63:D63)+$E$18*E63)/SUM(B63:E63),$D$18),IF(ABS(B63)>ABS(SUM(C63:D63)),($B$18*B63+$C$18*C63+$E$18*E63)/SUM(B63,C63,E63),$D$18)))) -> вне рынка | K63: TRUE
B64: -3 | C64: -2 | D64: 7 | E64: -1 | H64: =(B18*B64*0+C18*C64*0+D18*(B64+C64+D64+E64)+E18*E64*0)/(B64+C64+D64+E64) -> 84 | I64: =IF(ОДИНАКЗНАК(B64:E64),1,IF(ОДИНАКЗНАК(C64:E64),2,IF(AND(ОДИНАКЗНАК(B64:C64),ОДИНАКЗНАК(D64:E64)),3,IF(ОДИНАКЗНАК(B64:D64),4,IF(AND(NOT(ОДИНАКЗНАК(B64:C64)),NOT(ОДИНАКЗНАК(C64:D64))),5,IF(AND(NOT(ОДИНАКЗНАК(B64:C64)),ОДИНАКЗНАК(C64:D64)),6,7)))))) -> 7 | J64: =IF(SUM(B64:E64)=0,"вне рынка",IF(SUM(B64:D64)=0,$E$18,CHOOSE(I64,СРВЗВЕШ($B$18:$E$18,B64:E64),IF(ABS(B64)>ABS(SUM(C64:E64)),$B$18,IF(ABS(B64)<ABS(SUM(C64:D64)),($D$18*SUM(B64:D64)+$E$18*E64)/SUM(B64:E64),$E$18)),IF(ABS(SUM(B64:C64))>ABS(SUM(D64:E64)),СРВЗВЕШ($B$18:$C$18,B64:C64),IF(D64=0,$E$18,IF(OR(SUM(B64:D64)>0,ABS(SUM(B64:C64))<ABS(SUM(D64:E64))),($D$18*SUM(B64:D64)+$E$18*E64)/SUM(B64:E64)))),IF(ABS(SUM(B64:D64))>ABS(E64),СРВЗВЕШ($B$18:$D$18,B64:D64),$E$18),IF(ABS(SUM(B64:D64))>ABS(E64),($B$18*SUM(B64:C64)+$D$18*D64)/SUM(B64:D64),$E$18),IF(ABS(B64)>ABS(SUM(C64:D64)),($B$18*SUM(B64:D64)+$E$18*E64)/SUM(B64:E64),$D$18),IF(ABS(B64)>ABS(SUM(C64:D64)),($B$18*B64+$C$18*C64+$E$18*E64)/SUM(B64,C64,E64),$D$18)))) -> 84 | K64: TRUE
B65: -3 | C65: 2 | D65: -1 | E65: 1 | H65: =(B18*(B65+C65)+C18*C65*0+D18*D65+E18*E65*0)/(B65+C65+D65+E65*0) -> 83 | I65: =IF(ОДИНАКЗНАК(B65:E65),1,IF(ОДИНАКЗНАК(C65:E65),2,IF(AND(ОДИНАКЗНАК(B65:C65),ОДИНАКЗНАК(D65:E65)),3,IF(ОДИНАКЗНАК(B65:D65),4,IF(AND(NOT(ОДИНАКЗНАК(B65:C65)),NOT(ОДИНАКЗНАК(C65:D65))),5,IF(AND(NOT(ОДИНАКЗНАК(B65:C65)),ОДИНАКЗНАК(C65:D65)),6,7)))))) -> 5 | J65: =IF(SUM(B65:E65)=0,"вне рынка",IF(SUM(B65:D65)=0,$E$18,CHOOSE(I65,СРВЗВЕШ($B$18:$E$18,B65:E65),IF(ABS(B65)>ABS(SUM(C65:E65)),$B$18,IF(ABS(B65)<ABS(SUM(C65:D65)),($D$18*SUM(B65:D65)+$E$18*E65)/SUM(B65:E65),$E$18)),IF(ABS(SUM(B65:C65))>ABS(SUM(D65:E65)),СРВЗВЕШ($B$18:$C$18,B65:C65),IF(D65=0,$E$18,IF(OR(SUM(B65:D65)>0,ABS(SUM(B65:C65))<ABS(SUM(D65:E65))),($D$18*SUM(B65:D65)+$E$18*E65)/SUM(B65:E65)))),IF(ABS(SUM(B65:D65))>ABS(E65),СРВЗВЕШ($B$18:$D$18,B65:D65),$E$18),IF(ABS(SUM(B65:D65))>ABS(E65),($B$18*SUM(B65:C65)+$D$18*D65)/SUM(B65:D65),$E$18),IF(ABS(B65)>ABS(SUM(C65:D65)),($B$18*SUM(B65:D65)+$E$18*E65)/SUM(B65:E65),$D$18),IF(ABS(B65)>ABS(SUM(C65:D65)),($B$18*B65+$C$18*C65+$E$18*E65)/SUM(B65,C65,E65),$D$18)))) -> 83 | K65: TRUE | L65: тут всего три условия: 1е: -3 1 -1 1, среднее между B18=(-3+1) и D18.так как продаж больше.2е: -3 1 -1 4 ,когда покупки по Е18 преобладают, то есть средняя равна Е18 если сумма первых трех меньше Е18. 3е: -3 1 -1 3 когда ВНЕ РЫНКА,то есть сумма равна нулю.
B66: -3 | C66: 2 | D66: -2 | E66: 3 | H66: =IF(SUM(B66:E66)=0,"вне рынка") -> вне рынка | I66: =IF(ОДИНАКЗНАК(B66:E66),1,IF(ОДИНАКЗНАК(C66:E66),2,IF(AND(ОДИНАКЗНАК(B66:C66),ОДИНАКЗНАК(D66:E66)),3,IF(ОДИНАКЗНАК(B66:D66),4,IF(AND(NOT(ОДИНАКЗНАК(B66:C66)),NOT(ОДИНАКЗНАК(C66:D66))),5,IF(AND(NOT(ОДИНАКЗНАК(B66:C66)),ОДИНАКЗНАК(C66:D66)),6,7)))))) -> 5 | J66: =IF(SUM(B66:E66)=0,"вне рынка",IF(SUM(B66:D66)=0,$E$18,CHOOSE(I66,СРВЗВЕШ($B$18:$E$18,B66:E66),IF(ABS(B66)>ABS(SUM(C66:E66)),$B$18,IF(ABS(B66)<ABS(SUM(C66:D66)),($D$18*SUM(B66:D66)+$E$18*E66)/SUM(B66:E66),$E$18)),IF(ABS(SUM(B66:C66))>ABS(SUM(D66:E66)),СРВЗВЕШ($B$18:$C$18,B66:C66),IF(D66=0,$E$18,IF(OR(SUM(B66:D66)>0,ABS(SUM(B66:C66))<ABS(SUM(D66:E66))),($D$18*SUM(B66:D66)+$E$18*E66)/SUM(B66:E66)))),IF(ABS(SUM(B66:D66))>ABS(E66),СРВЗВЕШ($B$18:$D$18,B66:D66),$E$18),IF(ABS(SUM(B66:D66))>ABS(E66),($B$18*SUM(B66:C66)+$D$18*D66)/SUM(B66:D66),$E$18),IF(ABS(B66)>ABS(SUM(C66:D66)),($B$18*SUM(B66:D66)+$E$18*E66)/SUM(B66:E66),$D$18),IF(ABS(B66)>ABS(SUM(C66:D66)),($B$18*B66+$C$18*C66+$E$18*E66)/SUM(B66,C66,E66),$D$18)))) -> вне рынка | K66: TRUE
B67: -3 | C67: 2 | D67: -2 | E67: 4 | H67: =(B18*B67*0+C18*C67*0+D18*D67*0+E18*E67)/(B67*0+C67*0+D67*0+E67) -> 85 | I67: =IF(ОДИНАКЗНАК(B67:E67),1,IF(ОДИНАКЗНАК(C67:E67),2,IF(AND(ОДИНАКЗНАК(B67:C67),ОДИНАКЗНАК(D67:E67)),3,IF(ОДИНАКЗНАК(B67:D67),4,IF(AND(NOT(ОДИНАКЗНАК(B67:C67)),NOT(ОДИНАКЗНАК(C67:D67))),5,IF(AND(NOT(ОДИНАКЗНАК(B67:C67)),ОДИНАКЗНАК(C67:D67)),6,7)))))) -> 5 | J67: =IF(SUM(B67:E67)=0,"вне рынка",IF(SUM(B67:D67)=0,$E$18,CHOOSE(I67,СРВЗВЕШ($B$18:$E$18,B67:E67),IF(ABS(B67)>ABS(SUM(C67:E67)),$B$18,IF(ABS(B67)<ABS(SUM(C67:D67)),($D$18*SUM(B67:D67)+$E$18*E67)/SUM(B67:E67),$E$18)),IF(ABS(SUM(B67:C67))>ABS(SUM(D67:E67)),СРВЗВЕШ($B$18:$C$18,B67:C67),IF(D67=0,$E$18,IF(OR(SUM(B67:D67)>0,ABS(SUM(B67:C67))<ABS(SUM(D67:E67))),($D$18*SUM(B67:D67)+$E$18*E67)/SUM(B67:E67)))),IF(ABS(SUM(B67:D67))>ABS(E67),СРВЗВЕШ($B$18:$D$18,B67:D67),$E$18),IF(ABS(SUM(B67:D67))>ABS(E67),($B$18*SUM(B67:C67)+$D$18*D67)/SUM(B67:D67),$E$18),IF(ABS(B67)>ABS(SUM(C67:D67)),($B$18*SUM(B67:D67)+$E$18*E67)/SUM(B67:E67),$D$18),IF(ABS(B67)>ABS(SUM(C67:D67)),($B$18*B67+$C$18*C67+$E$18*E67)/SUM(B67,C67,E67),$D$18)))) -> 85 | K67: TRUE
B68: 3 | C68: 1 | D68: -1 | E68: 1 | H68: =((((B18*B68+C18*C68)/(B68+C68)))*(B68+C68)+D18*D68*0+((E18*E68/E68)*E68))/(B68+C68+D68*0+E68) -> 82.8 | I68: =IF(ОДИНАКЗНАК(B68:E68),1,IF(ОДИНАКЗНАК(C68:E68),2,IF(AND(ОДИНАКЗНАК(B68:C68),ОДИНАКЗНАК(D68:E68)),3,IF(ОДИНАКЗНАК(B68:D68),4,IF(AND(NOT(ОДИНАКЗНАК(B68:C68)),NOT(ОДИНАКЗНАК(C68:D68))),5,IF(AND(NOT(ОДИНАКЗНАК(B68:C68)),ОДИНАКЗНАК(C68:D68)),6,7)))))) -> 7 | J68: =IF(SUM(B68:E68)=0,"вне рынка",IF(SUM(B68:D68)=0,$E$18,CHOOSE(I68,СРВЗВЕШ($B$18:$E$18,B68:E68),IF(ABS(B68)>ABS(SUM(C68:E68)),$B$18,IF(ABS(B68)<ABS(SUM(C68:D68)),($D$18*SUM(B68:D68)+$E$18*E68)/SUM(B68:E68),$E$18)),IF(ABS(SUM(B68:C68))>ABS(SUM(D68:E68)),СРВЗВЕШ($B$18:$C$18,B68:C68),IF(D68=0,$E$18,IF(OR(SUM(B68:D68)>0,ABS(SUM(B68:C68))<ABS(SUM(D68:E68))),($D$18*SUM(B68:D68)+$E$18*E68)/SUM(B68:E68)))),IF(ABS(SUM(B68:D68))>ABS(E68),СРВЗВЕШ($B$18:$D$18,B68:D68),$E$18),IF(ABS(SUM(B68:D68))>ABS(E68),($B$18*SUM(B68:C68)+$D$18*D68)/SUM(B68:D68),$E$18),IF(ABS(B68)>ABS(SUM(C68:D68)),($B$18*SUM(B68:D68)+$E$18*E68)/SUM(B68:E68),$D$18),IF(ABS(B68)>ABS(SUM(C68:D68)),($B$18*B68+$C$18*C68+$E$18*E68)/SUM(B68,C68,E68),$D$18)))) -> 82.8 | K68: TRUE
B69: 3 | C69: 2 | D69: -5 | E69: 1 | H69: =(B18*(B69+C69+D69)+C18*(B69+C69+D69)+D18*(B69+C69+D69)+E18*(B69+C69+D69+E69))/(B69+C69+D69+E69) -> 85 | I69: =IF(ОДИНАКЗНАК(B69:E69),1,IF(ОДИНАКЗНАК(C69:E69),2,IF(AND(ОДИНАКЗНАК(B69:C69),ОДИНАКЗНАК(D69:E69)),3,IF(ОДИНАКЗНАК(B69:D69),4,IF(AND(NOT(ОДИНАКЗНАК(B69:C69)),NOT(ОДИНАКЗНАК(C69:D69))),5,IF(AND(NOT(ОДИНАКЗНАК(B69:C69)),ОДИНАКЗНАК(C69:D69)),6,7)))))) -> 7 | J69: =IF(SUM(B69:E69)=0,"вне рынка",IF(SUM(B69:D69)=0,$E$18,CHOOSE(I69,СРВЗВЕШ($B$18:$E$18,B69:E69),IF(ABS(B69)>ABS(SUM(C69:E69)),$B$18,IF(ABS(B69)<ABS(SUM(C69:D69)),($D$18*SUM(B69:D69)+$E$18*E69)/SUM(B69:E69),$E$18)),IF(ABS(SUM(B69:C69))>ABS(SUM(D69:E69)),СРВЗВЕШ($B$18:$C$18,B69:C69),IF(D69=0,$E$18,IF(OR(SUM(B69:D69)>0,ABS(SUM(B69:C69))<ABS(SUM(D69:E69))),($D$18*SUM(B69:D69)+$E$18*E69)/SUM(B69:E69)))),IF(ABS(SUM(B69:D69))>ABS(E69),СРВЗВЕШ($B$18:$D$18,B69:D69),$E$18),IF(ABS(SUM(B69:D69))>ABS(E69),($B$18*SUM(B69:C69)+$D$18*D69)/SUM(B69:D69),$E$18),IF(ABS(B69)>ABS(SUM(C69:D69)),($B$18*SUM(B69:D69)+$E$18*E69)/SUM(B69:E69),$D$18),IF(ABS(B69)>ABS(SUM(C69:D69)),($B$18*B69+$C$18*C69+$E$18*E69)/SUM(B69,C69,E69),$D$18)))) -> 85 | K69: TRUE
B70: 3 | C70: 2 | D70: -6 | E70: 1 | H70: =IF(SUM(B70:E70)=0,"вне рынка") -> вне рынка | I70: =IF(ОДИНАКЗНАК(B70:E70),1,IF(ОДИНАКЗНАК(C70:E70),2,IF(AND(ОДИНАКЗНАК(B70:C70),ОДИНАКЗНАК(D70:E70)),3,IF(ОДИНАКЗНАК(B70:D70),4,IF(AND(NOT(ОДИНАКЗНАК(B70:C70)),NOT(ОДИНАКЗНАК(C70:D70))),5,IF(AND(NOT(ОДИНАКЗНАК(B70:C70)),ОДИНАКЗНАК(C70:D70)),6,7)))))) -> 7 | J70: =IF(SUM(B70:E70)=0,"вне рынка",IF(SUM(B70:D70)=0,$E$18,CHOOSE(I70,СРВЗВЕШ($B$18:$E$18,B70:E70),IF(ABS(B70)>ABS(SUM(C70:E70)),$B$18,IF(ABS(B70)<ABS(SUM(C70:D70)),($D$18*SUM(B70:D70)+$E$18*E70)/SUM(B70:E70),$E$18)),IF(ABS(SUM(B70:C70))>ABS(SUM(D70:E70)),СРВЗВЕШ($B$18:$C$18,B70:C70),IF(D70=0,$E$18,IF(OR(SUM(B70:D70)>0,ABS(SUM(B70:C70))<ABS(SUM(D70:E70))),($D$18*SUM(B70:D70)+$E$18*E70)/SUM(B70:E70)))),IF(ABS(SUM(B70:D70))>ABS(E70),СРВЗВЕШ($B$18:$D$18,B70:D70),$E$18),IF(ABS(SUM(B70:D70))>ABS(E70),($B$18*SUM(B70:C70)+$D$18*D70)/SUM(B70:D70),$E$18),IF(ABS(B70)>ABS(SUM(C70:D70)),($B$18*SUM(B70:D70)+$E$18*E70)/SUM(B70:E70),$D$18),IF(ABS(B70)>ABS(SUM(C70:D70)),($B$18*B70+$C$18*C70+$E$18*E70)/SUM(B70,C70,E70),$D$18)))) -> вне рынка | K70: TRUE
B71: 3 | C71: 2 | D71: -7 | E71: 1 | H71: =(B18*B71*0+C18*C71*0+D18*(B71+C71+D71+E71)+E18*E71*0)/(B71+C71+D71+E71) -> 84 | I71: =IF(ОДИНАКЗНАК(B71:E71),1,IF(ОДИНАКЗНАК(C71:E71),2,IF(AND(ОДИНАКЗНАК(B71:C71),ОДИНАКЗНАК(D71:E71)),3,IF(ОДИНАКЗНАК(B71:D71),4,IF(AND(NOT(ОДИНАКЗНАК(B71:C71)),NOT(ОДИНАКЗНАК(C71:D71))),5,IF(AND(NOT(ОДИНАКЗНАК(B71:C71)),ОДИНАКЗНАК(C71:D71)),6,7)))))) -> 7 | J71: =IF(SUM(B71:E71)=0,"вне рынка",IF(SUM(B71:D71)=0,$E$18,CHOOSE(I71,СРВЗВЕШ($B$18:$E$18,B71:E71),IF(ABS(B71)>ABS(SUM(C71:E71)),$B$18,IF(ABS(B71)<ABS(SUM(C71:D71)),($D$18*SUM(B71:D71)+$E$18*E71)/SUM(B71:E71),$E$18)),IF(ABS(SUM(B71:C71))>ABS(SUM(D71:E71)),СРВЗВЕШ($B$18:$C$18,B71:C71),IF(D71=0,$E$18,IF(OR(SUM(B71:D71)>0,ABS(SUM(B71:C71))<ABS(SUM(D71:E71))),($D$18*SUM(B71:D71)+$E$18*E71)/SUM(B71:E71)))),IF(ABS(SUM(B71:D71))>ABS(E71),СРВЗВЕШ($B$18:$D$18,B71:D71),$E$18),IF(ABS(SUM(B71:D71))>ABS(E71),($B$18*SUM(B71:C71)+$D$18*D71)/SUM(B71:D71),$E$18),IF(ABS(B71)>ABS(SUM(C71:D71)),($B$18*SUM(B71:D71)+$E$18*E71)/SUM(B71:E71),$D$18),IF(ABS(B71)>ABS(SUM(C71:D71)),($B$18*B71+$C$18*C71+$E$18*E71)/SUM(B71,C71,E71),$D$18)))) -> 84 | K71: TRUE
B72: -3 | C72: 2 | D72: 0 | E72: 1 | H72: =IF(SUM(B72:E72)=0,"вне рынка") -> вне рынка | I72: =IF(ОДИНАКЗНАК(B72:E72),1,IF(ОДИНАКЗНАК(C72:E72),2,IF(AND(ОДИНАКЗНАК(B72:C72),ОДИНАКЗНАК(D72:E72)),3,IF(ОДИНАКЗНАК(B72:D72),4,IF(AND(NOT(ОДИНАКЗНАК(B72:C72)),NOT(ОДИНАКЗНАК(C72:D72))),5,IF(AND(NOT(ОДИНАКЗНАК(B72:C72)),ОДИНАКЗНАК(C72:D72)),6,7)))))) -> 2 | J72: =IF(SUM(B72:E72)=0,"вне рынка",IF(SUM(B72:D72)=0,$E$18,CHOOSE(I72,СРВЗВЕШ($B$18:$E$18,B72:E72),IF(ABS(B72)>ABS(SUM(C72:E72)),$B$18,IF(ABS(B72)<ABS(SUM(C72:D72)),($D$18*SUM(B72:D72)+$E$18*E72)/SUM(B72:E72),$E$18)),IF(ABS(SUM(B72:C72))>ABS(SUM(D72:E72)),СРВЗВЕШ($B$18:$C$18,B72:C72),IF(D72=0,$E$18,IF(OR(SUM(B72:D72)>0,ABS(SUM(B72:C72))<ABS(SUM(D72:E72))),($D$18*SUM(B72:D72)+$E$18*E72)/SUM(B72:E72)))),IF(ABS(SUM(B72:D72))>ABS(E72),СРВЗВЕШ($B$18:$D$18,B72:D72),$E$18),IF(ABS(SUM(B72:D72))>ABS(E72),($B$18*SUM(B72:C72)+$D$18*D72)/SUM(B72:D72),$E$18),IF(ABS(B72)>ABS(SUM(C72:D72)),($B$18*SUM(B72:D72)+$E$18*E72)/SUM(B72:E72),$D$18),IF(ABS(B72)>ABS(SUM(C72:D72)),($B$18*B72+$C$18*C72+$E$18*E72)/SUM(B72,C72,E72),$D$18)))) -> вне рынка | K72: TRUE
B73: -3 | C73: 2 | D73: 0 | E73: 2 | H73: =(B18*B73*0+C18*C73*0+D18*D73*0+E18*E73)/(B73*0+C73*0+D73*0+E73) -> 85 | I73: =IF(ОДИНАКЗНАК(B73:E73),1,IF(ОДИНАКЗНАК(C73:E73),2,IF(AND(ОДИНАКЗНАК(B73:C73),ОДИНАКЗНАК(D73:E73)),3,IF(ОДИНАКЗНАК(B73:D73),4,IF(AND(NOT(ОДИНАКЗНАК(B73:C73)),NOT(ОДИНАКЗНАК(C73:D73))),5,IF(AND(NOT(ОДИНАКЗНАК(B73:C73)),ОДИНАКЗНАК(C73:D73)),6,7)))))) -> 2 | J73: =IF(SUM(B73:E73)=0,"вне рынка",IF(SUM(B73:D73)=0,$E$18,CHOOSE(I73,СРВЗВЕШ($B$18:$E$18,B73:E73),IF(ABS(B73)>ABS(SUM(C73:E73)),$B$18,IF(ABS(B73)<ABS(SUM(C73:D73)),($D$18*SUM(B73:D73)+$E$18*E73)/SUM(B73:E73),$E$18)),IF(ABS(SUM(B73:C73))>ABS(SUM(D73:E73)),СРВЗВЕШ($B$18:$C$18,B73:C73),IF(D73=0,$E$18,IF(OR(SUM(B73:D73)>0,ABS(SUM(B73:C73))<ABS(SUM(D73:E73))),($D$18*SUM(B73:D73)+$E$18*E73)/SUM(B73:E73)))),IF(ABS(SUM(B73:D73))>ABS(E73),СРВЗВЕШ($B$18:$D$18,B73:D73),$E$18),IF(ABS(SUM(B73:D73))>ABS(E73),($B$18*SUM(B73:C73)+$D$18*D73)/SUM(B73:D73),$E$18),IF(ABS(B73)>ABS(SUM(C73:D73)),($B$18*SUM(B73:D73)+$E$18*E73)/SUM(B73:E73),$D$18),IF(ABS(B73)>ABS(SUM(C73:D73)),($B$18*B73+$C$18*C73+$E$18*E73)/SUM(B73,C73,E73),$D$18)))) -> 85 | K73: TRUE
B74: -4 | C74: 2 | D74: 0 | E74: 1 | H74: =(B18*(B74+C74+D74+E74)+C18*C74*0+D18*D74*0+E18*E74*0)/(B74+C74+D74+E74) -> 82 | I74: =IF(ОДИНАКЗНАК(B74:E74),1,IF(ОДИНАКЗНАК(C74:E74),2,IF(AND(ОДИНАКЗНАК(B74:C74),ОДИНАКЗНАК(D74:E74)),3,IF(ОДИНАКЗНАК(B74:D74),4,IF(AND(NOT(ОДИНАКЗНАК(B74:C74)),NOT(ОДИНАКЗНАК(C74:D74))),5,IF(AND(NOT(ОДИНАКЗНАК(B74:C74)),ОДИНАКЗНАК(C74:D74)),6,7)))))) -> 2 | J74: =IF(SUM(B74:E74)=0,"вне рынка",IF(SUM(B74:D74)=0,$E$18,CHOOSE(I74,СРВЗВЕШ($B$18:$E$18,B74:E74),IF(ABS(B74)>ABS(SUM(C74:E74)),$B$18,IF(ABS(B74)<ABS(SUM(C74:D74)),($D$18*SUM(B74:D74)+$E$18*E74)/SUM(B74:E74),$E$18)),IF(ABS(SUM(B74:C74))>ABS(SUM(D74:E74)),СРВЗВЕШ($B$18:$C$18,B74:C74),IF(D74=0,$E$18,IF(OR(SUM(B74:D74)>0,ABS(SUM(B74:C74))<ABS(SUM(D74:E74))),($D$18*SUM(B74:D74)+$E$18*E74)/SUM(B74:E74)))),IF(ABS(SUM(B74:D74))>ABS(E74),СРВЗВЕШ($B$18:$D$18,B74:D74),$E$18),IF(ABS(SUM(B74:D74))>ABS(E74),($B$18*SUM(B74:C74)+$D$18*D74)/SUM(B74:D74),$E$18),IF(ABS(B74)>ABS(SUM(C74:D74)),($B$18*SUM(B74:D74)+$E$18*E74)/SUM(B74:E74),$D$18),IF(ABS(B74)>ABS(SUM(C74:D74)),($B$18*B74+$C$18*C74+$E$18*E74)/SUM(B74,C74,E74),$D$18)))) -> 82 | K74: TRUE
B75: -3 | C75: 2 | D75: 1 | E75: 0 | H75: =IF(SUM(B75:E75)=0,"вне рынка") -> вне рынка | I75: =IF(ОДИНАКЗНАК(B75:E75),1,IF(ОДИНАКЗНАК(C75:E75),2,IF(AND(ОДИНАКЗНАК(B75:C75),ОДИНАКЗНАК(D75:E75)),3,IF(ОДИНАКЗНАК(B75:D75),4,IF(AND(NOT(ОДИНАКЗНАК(B75:C75)),NOT(ОДИНАКЗНАК(C75:D75))),5,IF(AND(NOT(ОДИНАКЗНАК(B75:C75)),ОДИНАКЗНАК(C75:D75)),6,7)))))) -> 2 | J75: =IF(SUM(B75:E75)=0,"вне рынка",IF(SUM(B75:D75)=0,$E$18,CHOOSE(I75,СРВЗВЕШ($B$18:$E$18,B75:E75),IF(ABS(B75)>ABS(SUM(C75:E75)),$B$18,IF(ABS(B75)<ABS(SUM(C75:D75)),($D$18*SUM(B75:D75)+$E$18*E75)/SUM(B75:E75),$E$18)),IF(ABS(SUM(B75:C75))>ABS(SUM(D75:E75)),СРВЗВЕШ($B$18:$C$18,B75:C75),IF(D75=0,$E$18,IF(OR(SUM(B75:D75)>0,ABS(SUM(B75:C75))<ABS(SUM(D75:E75))),($D$18*SUM(B75:D75)+$E$18*E75)/SUM(B75:E75)))),IF(ABS(SUM(B75:D75))>ABS(E75),СРВЗВЕШ($B$18:$D$18,B75:D75),$E$18),IF(ABS(SUM(B75:D75))>ABS(E75),($B$18*SUM(B75:C75)+$D$18*D75)/SUM(B75:D75),$E$18),IF(ABS(B75)>ABS(SUM(C75:D75)),($B$18*SUM(B75:D75)+$E$18*E75)/SUM(B75:E75),$D$18),IF(ABS(B75)>ABS(SUM(C75:D75)),($B$18*B75+$C$18*C75+$E$18*E75)/SUM(B75,C75,E75),$D$18)))) -> вне рынка | K75: TRUE
B76: -3 | C76: 2 | D76: 2 | E76: 0 | H76: =(B18*B76*0+C18*C76*0+D18*(B76+C76+D76)+E18*E76)/(B76+C76+D76+E76) -> 84 | I76: =IF(ОДИНАКЗНАК(B76:E76),1,IF(ОДИНАКЗНАК(C76:E76),2,IF(AND(ОДИНАКЗНАК(B76:C76),ОДИНАКЗНАК(D76:E76)),3,IF(ОДИНАКЗНАК(B76:D76),4,IF(AND(NOT(ОДИНАКЗНАК(B76:C76)),NOT(ОДИНАКЗНАК(C76:D76))),5,IF(AND(NOT(ОДИНАКЗНАК(B76:C76)),ОДИНАКЗНАК(C76:D76)),6,7)))))) -> 2 | J76: =IF(SUM(B76:E76)=0,"вне рынка",IF(SUM(B76:D76)=0,$E$18,CHOOSE(I76,СРВЗВЕШ($B$18:$E$18,B76:E76),IF(ABS(B76)>ABS(SUM(C76:E76)),$B$18,IF(ABS(B76)<ABS(SUM(C76:D76)),($D$18*SUM(B76:D76)+$E$18*E76)/SUM(B76:E76),$E$18)),IF(ABS(SUM(B76:C76))>ABS(SUM(D76:E76)),СРВЗВЕШ($B$18:$C$18,B76:C76),IF(D76=0,$E$18,IF(OR(SUM(B76:D76)>0,ABS(SUM(B76:C76))<ABS(SUM(D76:E76))),($D$18*SUM(B76:D76)+$E$18*E76)/SUM(B76:E76)))),IF(ABS(SUM(B76:D76))>ABS(E76),СРВЗВЕШ($B$18:$D$18,B76:D76),$E$18),IF(ABS(SUM(B76:D76))>ABS(E76),($B$18*SUM(B76:C76)+$D$18*D76)/SUM(B76:D76),$E$18),IF(ABS(B76)>ABS(SUM(C76:D76)),($B$18*SUM(B76:D76)+$E$18*E76)/SUM(B76:E76),$D$18),IF(ABS(B76)>ABS(SUM(C76:D76)),($B$18*B76+$C$18*C76+$E$18*E76)/SUM(B76,C76,E76),$D$18)))) -> 84 | K76: TRUE
B77: -4 | C77: 2 | D77: 1 | E77: 0 | H77: =(B18*(B77+C77+D77+E77)+C18*C77*0+D18*D77*0+E18*E77*0)/(B77+C77+D77+E77) -> 82 | I77: =IF(ОДИНАКЗНАК(B77:E77),1,IF(ОДИНАКЗНАК(C77:E77),2,IF(AND(ОДИНАКЗНАК(B77:C77),ОДИНАКЗНАК(D77:E77)),3,IF(ОДИНАКЗНАК(B77:D77),4,IF(AND(NOT(ОДИНАКЗНАК(B77:C77)),NOT(ОДИНАКЗНАК(C77:D77))),5,IF(AND(NOT(ОДИНАКЗНАК(B77:C77)),ОДИНАКЗНАК(C77:D77)),6,7)))))) -> 2 | J77: =IF(SUM(B77:E77)=0,"вне рынка",IF(SUM(B77:D77)=0,$E$18,CHOOSE(I77,СРВЗВЕШ($B$18:$E$18,B77:E77),IF(ABS(B77)>ABS(SUM(C77:E77)),$B$18,IF(ABS(B77)<ABS(SUM(C77:D77)),($D$18*SUM(B77:D77)+$E$18*E77)/SUM(B77:E77),$E$18)),IF(ABS(SUM(B77:C77))>ABS(SUM(D77:E77)),СРВЗВЕШ($B$18:$C$18,B77:C77),IF(D77=0,$E$18,IF(OR(SUM(B77:D77)>0,ABS(SUM(B77:C77))<ABS(SUM(D77:E77))),($D$18*SUM(B77:D77)+$E$18*E77)/SUM(B77:E77)))),IF(ABS(SUM(B77:D77))>ABS(E77),СРВЗВЕШ($B$18:$D$18,B77:D77),$E$18),IF(ABS(SUM(B77:D77))>ABS(E77),($B$18*SUM(B77:C77)+$D$18*D77)/SUM(B77:D77),$E$18),IF(ABS(B77)>ABS(SUM(C77:D77)),($B$18*SUM(B77:D77)+$E$18*E77)/SUM(B77:E77),$D$18),IF(ABS(B77)>ABS(SUM(C77:D77)),($B$18*B77+$C$18*C77+$E$18*E77)/SUM(B77,C77,E77),$D$18)))) -> 82 | K77: TRUE
B78: -3 | C78: 2 | D78: 0 | E78: 0 | H78: =(B18*(B78+C78)+C18*C78*0)/(B78+C78) -> 82 | I78: =IF(ОДИНАКЗНАК(B78:E78),1,IF(ОДИНАКЗНАК(C78:E78),2,IF(AND(ОДИНАКЗНАК(B78:C78),ОДИНАКЗНАК(D78:E78)),3,IF(ОДИНАКЗНАК(B78:D78),4,IF(AND(NOT(ОДИНАКЗНАК(B78:C78)),NOT(ОДИНАКЗНАК(C78:D78))),5,IF(AND(NOT(ОДИНАКЗНАК(B78:C78)),ОДИНАКЗНАК(C78:D78)),6,7)))))) -> 2 | J78: =IF(SUM(B78:E78)=0,"вне рынка",IF(SUM(B78:D78)=0,$E$18,CHOOSE(I78,СРВЗВЕШ($B$18:$E$18,B78:E78),IF(ABS(B78)>ABS(SUM(C78:E78)),$B$18,IF(ABS(B78)<ABS(SUM(C78:D78)),($D$18*SUM(B78:D78)+$E$18*E78)/SUM(B78:E78),$E$18)),IF(ABS(SUM(B78:C78))>ABS(SUM(D78:E78)),СРВЗВЕШ($B$18:$C$18,B78:C78),IF(D78=0,$E$18,IF(OR(SUM(B78:D78)>0,ABS(SUM(B78:C78))<ABS(SUM(D78:E78))),($D$18*SUM(B78:D78)+$E$18*E78)/SUM(B78:E78)))),IF(ABS(SUM(B78:D78))>ABS(E78),СРВЗВЕШ($B$18:$D$18,B78:D78),$E$18),IF(ABS(SUM(B78:D78))>ABS(E78),($B$18*SUM(B78:C78)+$D$18*D78)/SUM(B78:D78),$E$18),IF(ABS(B78)>ABS(SUM(C78:D78)),($B$18*SUM(B78:D78)+$E$18*E78)/SUM(B78:E78),$D$18),IF(ABS(B78)>ABS(SUM(C78:D78)),($B$18*B78+$C$18*C78+$E$18*E78)/SUM(B78,C78,E78),$D$18)))) -> 82 | K78: TRUE
B79: -3 | C79: -2 | D79: 0 | E79: 1 | H79: =(B18*B79+C18*C79+D18*D79+E18*E79*0)/(B79+C79+D79+E79*0) -> 82.4 | I79: =IF(ОДИНАКЗНАК(B79:E79),1,IF(ОДИНАКЗНАК(C79:E79),2,IF(AND(ОДИНАКЗНАК(B79:C79),ОДИНАКЗНАК(D79:E79)),3,IF(ОДИНАКЗНАК(B79:D79),4,IF(AND(NOT(ОДИНАКЗНАК(B79:C79)),NOT(ОДИНАКЗНАК(C79:D79))),5,IF(AND(NOT(ОДИНАКЗНАК(B79:C79)),ОДИНАКЗНАК(C79:D79)),6,7)))))) -> 3 | J79: =IF(SUM(B79:E79)=0,"вне рынка",IF(SUM(B79:D79)=0,$E$18,CHOOSE(I79,СРВЗВЕШ($B$18:$E$18,B79:E79),IF(ABS(B79)>ABS(SUM(C79:E79)),$B$18,IF(ABS(B79)<ABS(SUM(C79:D79)),($D$18*SUM(B79:D79)+$E$18*E79)/SUM(B79:E79),$E$18)),IF(ABS(SUM(B79:C79))>ABS(SUM(D79:E79)),СРВЗВЕШ($B$18:$C$18,B79:C79),IF(D79=0,$E$18,IF(OR(SUM(B79:D79)>0,ABS(SUM(B79:C79))<ABS(SUM(D79:E79))),($D$18*SUM(B79:D79)+$E$18*E79)/SUM(B79:E79)))),IF(ABS(SUM(B79:D79))>ABS(E79),СРВЗВЕШ($B$18:$D$18,B79:D79),$E$18),IF(ABS(SUM(B79:D79))>ABS(E79),($B$18*SUM(B79:C79)+$D$18*D79)/SUM(B79:D79),$E$18),IF(ABS(B79)>ABS(SUM(C79:D79)),($B$18*SUM(B79:D79)+$E$18*E79)/SUM(B79:E79),$D$18),IF(ABS(B79)>ABS(SUM(C79:D79)),($B$18*B79+$C$18*C79+$E$18*E79)/SUM(B79,C79,E79),$D$18)))) -> 82.40000153 | K79: TRUE
B80: -3 | C80: -2 | D80: 0 | E80: 5 | H80: =IF(SUM(B80:E80)=0,"вне рынка") -> вне рынка | I80: =IF(ОДИНАКЗНАК(B80:E80),1,IF(ОДИНАКЗНАК(C80:E80),2,IF(AND(ОДИНАКЗНАК(B80:C80),ОДИНАКЗНАК(D80:E80)),3,IF(ОДИНАКЗНАК(B80:D80),4,IF(AND(NOT(ОДИНАКЗНАК(B80:C80)),NOT(ОДИНАКЗНАК(C80:D80))),5,IF(AND(NOT(ОДИНАКЗНАК(B80:C80)),ОДИНАКЗНАК(C80:D80)),6,7)))))) -> 3 | J80: =IF(SUM(B80:E80)=0,"вне рынка",IF(SUM(B80:D80)=0,$E$18,CHOOSE(I80,СРВЗВЕШ($B$18:$E$18,B80:E80),IF(ABS(B80)>ABS(SUM(C80:E80)),$B$18,IF(ABS(B80)<ABS(SUM(C80:D80)),($D$18*SUM(B80:D80)+$E$18*E80)/SUM(B80:E80),$E$18)),IF(ABS(SUM(B80:C80))>ABS(SUM(D80:E80)),СРВЗВЕШ($B$18:$C$18,B80:C80),IF(D80=0,$E$18,IF(OR(SUM(B80:D80)>0,ABS(SUM(B80:C80))<ABS(SUM(D80:E80))),($D$18*SUM(B80:D80)+$E$18*E80)/SUM(B80:E80)))),IF(ABS(SUM(B80:D80))>ABS(E80),СРВЗВЕШ($B$18:$D$18,B80:D80),$E$18),IF(ABS(SUM(B80:D80))>ABS(E80),($B$18*SUM(B80:C80)+$D$18*D80)/SUM(B80:D80),$E$18),IF(ABS(B80)>ABS(SUM(C80:D80)),($B$18*SUM(B80:D80)+$E$18*E80)/SUM(B80:E80),$D$18),IF(ABS(B80)>ABS(SUM(C80:D80)),($B$18*B80+$C$18*C80+$E$18*E80)/SUM(B80,C80,E80),$D$18)))) -> вне рынка | K80: TRUE
B81: -3 | C81: -2 | D81: 0 | E81: 6 | H81: =(B18*B81*0+C18*C81*0+D18*D81+E18*E81)/(B81*0+C81*0+D81+E81) -> 85 | I81: =IF(ОДИНАКЗНАК(B81:E81),1,IF(ОДИНАКЗНАК(C81:E81),2,IF(AND(ОДИНАКЗНАК(B81:C81),ОДИНАКЗНАК(D81:E81)),3,IF(ОДИНАКЗНАК(B81:D81),4,IF(AND(NOT(ОДИНАКЗНАК(B81:C81)),NOT(ОДИНАКЗНАК(C81:D81))),5,IF(AND(NOT(ОДИНАКЗНАК(B81:C81)),ОДИНАКЗНАК(C81:D81)),6,7)))))) -> 3 | J81: =IF(SUM(B81:E81)=0,"вне рынка",IF(SUM(B81:D81)=0,$E$18,CHOOSE(I81,СРВЗВЕШ($B$18:$E$18,B81:E81),IF(ABS(B81)>ABS(SUM(C81:E81)),$B$18,IF(ABS(B81)<ABS(SUM(C81:D81)),($D$18*SUM(B81:D81)+$E$18*E81)/SUM(B81:E81),$E$18)),IF(ABS(SUM(B81:C81))>ABS(SUM(D81:E81)),СРВЗВЕШ($B$18:$C$18,B81:C81),IF(D81=0,$E$18,IF(OR(SUM(B81:D81)>0,ABS(SUM(B81:C81))<ABS(SUM(D81:E81))),($D$18*SUM(B81:D81)+$E$18*E81)/SUM(B81:E81)))),IF(ABS(SUM(B81:D81))>ABS(E81),СРВЗВЕШ($B$18:$D$18,B81:D81),$E$18),IF(ABS(SUM(B81:D81))>ABS(E81),($B$18*SUM(B81:C81)+$D$18*D81)/SUM(B81:D81),$E$18),IF(ABS(B81)>ABS(SUM(C81:D81)),($B$18*SUM(B81:D81)+$E$18*E81)/SUM(B81:E81),$D$18),IF(ABS(B81)>ABS(SUM(C81:D81)),($B$18*B81+$C$18*C81+$E$18*E81)/SUM(B81,C81,E81),$D$18)))) -> 85 | K81: TRUE
B82: -3 | C82: 2 | D82: 0 | E82: -1 | H82: =(B18*(B82+C82)+C18*C82*0+D18*D82+E18*E82)/(B82+C82+D82+E82) -> 83.5 | I82: =IF(ОДИНАКЗНАК(B82:E82),1,IF(ОДИНАКЗНАК(C82:E82),2,IF(AND(ОДИНАКЗНАК(B82:C82),ОДИНАКЗНАК(D82:E82)),3,IF(ОДИНАКЗНАК(B82:D82),4,IF(AND(NOT(ОДИНАКЗНАК(B82:C82)),NOT(ОДИНАКЗНАК(C82:D82))),5,IF(AND(NOT(ОДИНАКЗНАК(B82:C82)),ОДИНАКЗНАК(C82:D82)),6,7)))))) -> 6 | J82: =IF(SUM(B82:E82)=0,"вне рынка",IF(SUM(B82:D82)=0,$E$18,CHOOSE(I82,СРВЗВЕШ($B$18:$E$18,B82:E82),IF(ABS(B82)>ABS(SUM(C82:E82)),$B$18,IF(ABS(B82)<ABS(SUM(C82:D82)),($D$18*SUM(B82:D82)+$E$18*E82)/SUM(B82:E82),$E$18)),IF(ABS(SUM(B82:C82))>ABS(SUM(D82:E82)),СРВЗВЕШ($B$18:$C$18,B82:C82),IF(D82=0,$E$18,IF(OR(SUM(B82:D82)>0,ABS(SUM(B82:C82))<ABS(SUM(D82:E82))),($D$18*SUM(B82:D82)+$E$18*E82)/SUM(B82:E82)))),IF(ABS(SUM(B82:D82))>ABS(E82),СРВЗВЕШ($B$18:$D$18,B82:D82),$E$18),IF(ABS(SUM(B82:D82))>ABS(E82),($B$18*SUM(B82:C82)+$D$18*D82)/SUM(B82:D82),$E$18),IF(ABS(B82)>ABS(SUM(C82:D82)),($B$18*SUM(B82:D82)+$E$18*E82)/SUM(B82:E82),$D$18),IF(ABS(B82)>ABS(SUM(C82:D82)),($B$18*B82+$C$18*C82+$E$18*E82)/SUM(B82,C82,E82),$D$18)))) -> 83.5 | K82: TRUE | L82: тут одно условие: -3 1 0 -1 среднее считается (B18*(-3+1+0)+E18*-1)/(-3+1+0-1)
B83: -3 | C83: -2 | D83: 1 | E83: 0 | H83: =(B18*B83+C18*C83+D18*D83*0+E18*E83)/(B83+C83+D83*0+E83) -> 82.4 | I83: =IF(ОДИНАКЗНАК(B83:E83),1,IF(ОДИНАКЗНАК(C83:E83),2,IF(AND(ОДИНАКЗНАК(B83:C83),ОДИНАКЗНАК(D83:E83)),3,IF(ОДИНАКЗНАК(B83:D83),4,IF(AND(NOT(ОДИНАКЗНАК(B83:C83)),NOT(ОДИНАКЗНАК(C83:D83))),5,IF(AND(NOT(ОДИНАКЗНАК(B83:C83)),ОДИНАКЗНАК(C83:D83)),6,7)))))) -> 3 | J83: =IF(SUM(B83:E83)=0,"вне рынка",IF(SUM(B83:D83)=0,$E$18,CHOOSE(I83,СРВЗВЕШ($B$18:$E$18,B83:E83),IF(ABS(B83)>ABS(SUM(C83:E83)),$B$18,IF(ABS(B83)<ABS(SUM(C83:D83)),($D$18*SUM(B83:D83)+$E$18*E83)/SUM(B83:E83),$E$18)),IF(ABS(SUM(B83:C83))>ABS(SUM(D83:E83)),СРВЗВЕШ($B$18:$C$18,B83:C83),IF(D83=0,$E$18,IF(OR(SUM(B83:D83)>0,ABS(SUM(B83:C83))<ABS(SUM(D83:E83))),($D$18*SUM(B83:D83)+$E$18*E83)/SUM(B83:E83)))),IF(ABS(SUM(B83:D83))>ABS(E83),СРВЗВЕШ($B$18:$D$18,B83:D83),$E$18),IF(ABS(SUM(B83:D83))>ABS(E83),($B$18*SUM(B83:C83)+$D$18*D83)/SUM(B83:D83),$E$18),IF(ABS(B83)>ABS(SUM(C83:D83)),($B$18*SUM(B83:D83)+$E$18*E83)/SUM(B83:E83),$D$18),IF(ABS(B83)>ABS(SUM(C83:D83)),($B$18*B83+$C$18*C83+$E$18*E83)/SUM(B83,C83,E83),$D$18)))) -> 82.40000153 | K83: TRUE
B84: -3 | C84: -2 | D84: 5 | E84: 0 | H84: =IF(SUM(B84:E84)=0,"вне рынка") -> вне рынка | I84: =IF(ОДИНАКЗНАК(B84:E84),1,IF(ОДИНАКЗНАК(C84:E84),2,IF(AND(ОДИНАКЗНАК(B84:C84),ОДИНАКЗНАК(D84:E84)),3,IF(ОДИНАКЗНАК(B84:D84),4,IF(AND(NOT(ОДИНАКЗНАК(B84:C84)),NOT(ОДИНАКЗНАК(C84:D84))),5,IF(AND(NOT(ОДИНАКЗНАК(B84:C84)),ОДИНАКЗНАК(C84:D84)),6,7)))))) -> 3 | J84: =IF(SUM(B84:E84)=0,"вне рынка",IF(SUM(B84:D84)=0,$E$18,CHOOSE(I84,СРВЗВЕШ($B$18:$E$18,B84:E84),IF(ABS(B84)>ABS(SUM(C84:E84)),$B$18,IF(ABS(B84)<ABS(SUM(C84:D84)),($D$18*SUM(B84:D84)+$E$18*E84)/SUM(B84:E84),$E$18)),IF(ABS(SUM(B84:C84))>ABS(SUM(D84:E84)),СРВЗВЕШ($B$18:$C$18,B84:C84),IF(D84=0,$E$18,IF(OR(SUM(B84:D84)>0,ABS(SUM(B84:C84))<ABS(SUM(D84:E84))),($D$18*SUM(B84:D84)+$E$18*E84)/SUM(B84:E84)))),IF(ABS(SUM(B84:D84))>ABS(E84),СРВЗВЕШ($B$18:$D$18,B84:D84),$E$18),IF(ABS(SUM(B84:D84))>ABS(E84),($B$18*SUM(B84:C84)+$D$18*D84)/SUM(B84:D84),$E$18),IF(ABS(B84)>ABS(SUM(C84:D84)),($B$18*SUM(B84:D84)+$E$18*E84)/SUM(B84:E84),$D$18),IF(ABS(B84)>ABS(SUM(C84:D84)),($B$18*B84+$C$18*C84+$E$18*E84)/SUM(B84,C84,E84),$D$18)))) -> вне рынка | K84: TRUE
B85: -3 | C85: -2 | D85: 6 | E85: 0 | H85: =(B18*B85*0+C18*C85*0+D18*(B85+C85+D85)+E18*E85)/(B85+C85+D85+E85) -> 84 | I85: =IF(ОДИНАКЗНАК(B85:E85),1,IF(ОДИНАКЗНАК(C85:E85),2,IF(AND(ОДИНАКЗНАК(B85:C85),ОДИНАКЗНАК(D85:E85)),3,IF(ОДИНАКЗНАК(B85:D85),4,IF(AND(NOT(ОДИНАКЗНАК(B85:C85)),NOT(ОДИНАКЗНАК(C85:D85))),5,IF(AND(NOT(ОДИНАКЗНАК(B85:C85)),ОДИНАКЗНАК(C85:D85)),6,7)))))) -> 3 | J85: =IF(SUM(B85:E85)=0,"вне рынка",IF(SUM(B85:D85)=0,$E$18,CHOOSE(I85,СРВЗВЕШ($B$18:$E$18,B85:E85),IF(ABS(B85)>ABS(SUM(C85:E85)),$B$18,IF(ABS(B85)<ABS(SUM(C85:D85)),($D$18*SUM(B85:D85)+$E$18*E85)/SUM(B85:E85),$E$18)),IF(ABS(SUM(B85:C85))>ABS(SUM(D85:E85)),СРВЗВЕШ($B$18:$C$18,B85:C85),IF(D85=0,$E$18,IF(OR(SUM(B85:D85)>0,ABS(SUM(B85:C85))<ABS(SUM(D85:E85))),($D$18*SUM(B85:D85)+$E$18*E85)/SUM(B85:E85)))),IF(ABS(SUM(B85:D85))>ABS(E85),СРВЗВЕШ($B$18:$D$18,B85:D85),$E$18),IF(ABS(SUM(B85:D85))>ABS(E85),($B$18*SUM(B85:C85)+$D$18*D85)/SUM(B85:D85),$E$18),IF(ABS(B85)>ABS(SUM(C85:D85)),($B$18*SUM(B85:D85)+$E$18*E85)/SUM(B85:E85),$D$18),IF(ABS(B85)>ABS(SUM(C85:D85)),($B$18*B85+$C$18*C85+$E$18*E85)/SUM(B85,C85,E85),$D$18)))) -> 84 | K85: =IF(ISTEXT(J85),H85=J85,ROUND(H85,2)=ROUND(J85,2)) -> TRUE
B86: 3 | C86: -1 | D86: 0 | E86: -1 | H86: =(B18*(B86+C86+D86+E86)+C18*C86*0+D18*D86*0+E18*E86*0)/(B86+C86+D86+E86) -> 82 | I86: =IF(ОДИНАКЗНАК(B86:E86),1,IF(ОДИНАКЗНАК(C86:E86),2,IF(AND(ОДИНАКЗНАК(B86:C86),ОДИНАКЗНАК(D86:E86)),3,IF(ОДИНАКЗНАК(B86:D86),4,IF(AND(NOT(ОДИНАКЗНАК(B86:C86)),NOT(ОДИНАКЗНАК(C86:D86))),5,IF(AND(NOT(ОДИНАКЗНАК(B86:C86)),ОДИНАКЗНАК(C86:D86)),6,7)))))) -> 2 | J86: =IF(SUM(B86:E86)=0,"вне рынка",IF(SUM(B86:D86)=0,$E$18,CHOOSE(I86,СРВЗВЕШ($B$18:$E$18,B86:E86),IF(ABS(B86)>ABS(SUM(C86:E86)),$B$18,IF(ABS(B86)<ABS(SUM(C86:D86)),($D$18*SUM(B86:D86)+$E$18*E86)/SUM(B86:E86),$E$18)),IF(ABS(SUM(B86:C86))>ABS(SUM(D86:E86)),СРВЗВЕШ($B$18:$C$18,B86:C86),IF(D86=0,$E$18,IF(OR(SUM(B86:D86)>0,ABS(SUM(B86:C86))<ABS(SUM(D86:E86))),($D$18*SUM(B86:D86)+$E$18*E86)/SUM(B86:E86)))),IF(ABS(SUM(B86:D86))>ABS(E86),СРВЗВЕШ($B$18:$D$18,B86:D86),$E$18),IF(ABS(SUM(B86:D86))>ABS(E86),($B$18*SUM(B86:C86)+$D$18*D86)/SUM(B86:D86),$E$18),IF(ABS(B86)>ABS(SUM(C86:D86)),($B$18*SUM(B86:D86)+$E$18*E86)/SUM(B86:E86),$D$18),IF(ABS(B86)>ABS(SUM(C86:D86)),($B$18*B86+$C$18*C86+$E$18*E86)/SUM(B86,C86,E86),$D$18)))) -> 82 | K86: =IF(ISTEXT(J86),H86=J86,ROUND(H86,2)=ROUND(J86,2)) -> TRUE | L86: тут три условия: 3 -1 0 -1 когда покупок больше, то средняя равна B18. 2е: 3 -1 0 -2 когда ВНЕ РЫНКА. 3е: 3 -1 0 -3 когда продажи по Е18 больше первых покупок, то средняя равна перевороту Е18.
B87: 3 | C87: -2 | D87: 0 | E87: -1 | H87: =IF(SUM(B87:E87)=0,"вне рынка") -> вне рынка | I87: =IF(ОДИНАКЗНАК(B87:E87),1,IF(ОДИНАКЗНАК(C87:E87),2,IF(AND(ОДИНАКЗНАК(B87:C87),ОДИНАКЗНАК(D87:E87)),3,IF(ОДИНАКЗНАК(B87:D87),4,IF(AND(NOT(ОДИНАКЗНАК(B87:C87)),NOT(ОДИНАКЗНАК(C87:D87))),5,IF(AND(NOT(ОДИНАКЗНАК(B87:C87)),ОДИНАКЗНАК(C87:D87)),6,7)))))) -> 2 | J87: =IF(SUM(B87:E87)=0,"вне рынка",IF(SUM(B87:D87)=0,$E$18,CHOOSE(I87,СРВЗВЕШ($B$18:$E$18,B87:E87),IF(ABS(B87)>ABS(SUM(C87:E87)),$B$18,IF(ABS(B87)<ABS(SUM(C87:D87)),($D$18*SUM(B87:D87)+$E$18*E87)/SUM(B87:E87),$E$18)),IF(ABS(SUM(B87:C87))>ABS(SUM(D87:E87)),СРВЗВЕШ($B$18:$C$18,B87:C87),IF(D87=0,$E$18,IF(OR(SUM(B87:D87)>0,ABS(SUM(B87:C87))<ABS(SUM(D87:E87))),($D$18*SUM(B87:D87)+$E$18*E87)/SUM(B87:E87)))),IF(ABS(SUM(B87:D87))>ABS(E87),СРВЗВЕШ($B$18:$D$18,B87:D87),$E$18),IF(ABS(SUM(B87:D87))>ABS(E87),($B$18*SUM(B87:C87)+$D$18*D87)/SUM(B87:D87),$E$18),IF(ABS(B87)>ABS(SUM(C87:D87)),($B$18*SUM(B87:D87)+$E$18*E87)/SUM(B87:E87),$D$18),IF(ABS(B87)>ABS(SUM(C87:D87)),($B$18*B87+$C$18*C87+$E$18*E87)/SUM(B87,C87,E87),$D$18)))) -> вне рынка | K87: =IF(ISTEXT(J87),H87=J87,ROUND(H87,2)=ROUND(J87,2)) -> TRUE
B88: 3 | C88: -2 | D88: 0 | E88: -2 | H88: =(B18*B88*0+C18*C88*0+D18*D88+E18*E88)/(B88*0+C88*0+D88+E88) -> 85 | I88: =IF(ОДИНАКЗНАК(B88:E88),1,IF(ОДИНАКЗНАК(C88:E88),2,IF(AND(ОДИНАКЗНАК(B88:C88),ОДИНАКЗНАК(D88:E88)),3,IF(ОДИНАКЗНАК(B88:D88),4,IF(AND(NOT(ОДИНАКЗНАК(B88:C88)),NOT(ОДИНАКЗНАК(C88:D88))),5,IF(AND(NOT(ОДИНАКЗНАК(B88:C88)),ОДИНАКЗНАК(C88:D88)),6,7)))))) -> 2 | J88: =IF(SUM(B88:E88)=0,"вне рынка",IF(SUM(B88:D88)=0,$E$18,CHOOSE(I88,СРВЗВЕШ($B$18:$E$18,B88:E88),IF(ABS(B88)>ABS(SUM(C88:E88)),$B$18,IF(ABS(B88)<ABS(SUM(C88:D88)),($D$18*SUM(B88:D88)+$E$18*E88)/SUM(B88:E88),$E$18)),IF(ABS(SUM(B88:C88))>ABS(SUM(D88:E88)),СРВЗВЕШ($B$18:$C$18,B88:C88),IF(D88=0,$E$18,IF(OR(SUM(B88:D88)>0,ABS(SUM(B88:C88))<ABS(SUM(D88:E88))),($D$18*SUM(B88:D88)+$E$18*E88)/SUM(B88:E88)))),IF(ABS(SUM(B88:D88))>ABS(E88),СРВЗВЕШ($B$18:$D$18,B88:D88),$E$18),IF(ABS(SUM(B88:D88))>ABS(E88),($B$18*SUM(B88:C88)+$D$18*D88)/SUM(B88:D88),$E$18),IF(ABS(B88)>ABS(SUM(C88:D88)),($B$18*SUM(B88:D88)+$E$18*E88)/SUM(B88:E88),$D$18),IF(ABS(B88)>ABS(SUM(C88:D88)),($B$18*B88+$C$18*C88+$E$18*E88)/SUM(B88,C88,E88),$D$18)))) -> 85 | K88: =IF(ISTEXT(J88),H88=J88,ROUND(H88,2)=ROUND(J88,2)) -> TRUE
B89: 3 | C89: -2 | D89: -1 | E89: 0 | H89: =IF(SUM(B89:E89)=0,"вне рынка") -> вне рынка | I89: =IF(ОДИНАКЗНАК(B89:E89),1,IF(ОДИНАКЗНАК(C89:E89),2,IF(AND(ОДИНАКЗНАК(B89:C89),ОДИНАКЗНАК(D89:E89)),3,IF(ОДИНАКЗНАК(B89:D89),4,IF(AND(NOT(ОДИНАКЗНАК(B89:C89)),NOT(ОДИНАКЗНАК(C89:D89))),5,IF(AND(NOT(ОДИНАКЗНАК(B89:C89)),ОДИНАКЗНАК(C89:D89)),6,7)))))) -> 2 | J89: =IF(SUM(B89:E89)=0,"вне рынка",IF(SUM(B89:D89)=0,$E$18,CHOOSE(I89,СРВЗВЕШ($B$18:$E$18,B89:E89),IF(ABS(B89)>ABS(SUM(C89:E89)),$B$18,IF(ABS(B89)<ABS(SUM(C89:D89)),($D$18*SUM(B89:D89)+$E$18*E89)/SUM(B89:E89),$E$18)),IF(ABS(SUM(B89:C89))>ABS(SUM(D89:E89)),СРВЗВЕШ($B$18:$C$18,B89:C89),IF(D89=0,$E$18,IF(OR(SUM(B89:D89)>0,ABS(SUM(B89:C89))<ABS(SUM(D89:E89))),($D$18*SUM(B89:D89)+$E$18*E89)/SUM(B89:E89)))),IF(ABS(SUM(B89:D89))>ABS(E89),СРВЗВЕШ($B$18:$D$18,B89:D89),$E$18),IF(ABS(SUM(B89:D89))>ABS(E89),($B$18*SUM(B89:C89)+$D$18*D89)/SUM(B89:D89),$E$18),IF(ABS(B89)>ABS(SUM(C89:D89)),($B$18*SUM(B89:D89)+$E$18*E89)/SUM(B89:E89),$D$18),IF(ABS(B89)>ABS(SUM(C89:D89)),($B$18*B89+$C$18*C89+$E$18*E89)/SUM(B89,C89,E89),$D$18)))) -> вне рынка | K89: =IF(ISTEXT(J89),H89=J89,ROUND(H89,2)=ROUND(J89,2)) -> TRUE
B90: 3 | C90: -2 | D90: -2 | E90: 0 | H90: =(B18*B90*0+C18*C90*0+D18*(B90+C90+D90)+E18*E90)/(B90+C90+D90+E90) -> 84 | I90: =IF(ОДИНАКЗНАК(B90:E90),1,IF(ОДИНАКЗНАК(C90:E90),2,IF(AND(ОДИНАКЗНАК(B90:C90),ОДИНАКЗНАК(D90:E90)),3,IF(ОДИНАКЗНАК(B90:D90),4,IF(AND(NOT(ОДИНАКЗНАК(B90:C90)),NOT(ОДИНАКЗНАК(C90:D90))),5,IF(AND(NOT(ОДИНАКЗНАК(B90:C90)),ОДИНАКЗНАК(C90:D90)),6,7)))))) -> 2 | J90: =IF(SUM(B90:E90)=0,"вне рынка",IF(SUM(B90:D90)=0,$E$18,CHOOSE(I90,СРВЗВЕШ($B$18:$E$18,B90:E90),IF(ABS(B90)>ABS(SUM(C90:E90)),$B$18,IF(ABS(B90)<ABS(SUM(C90:D90)),($D$18*SUM(B90:D90)+$E$18*E90)/SUM(B90:E90),$E$18)),IF(ABS(SUM(B90:C90))>ABS(SUM(D90:E90)),СРВЗВЕШ($B$18:$C$18,B90:C90),IF(D90=0,$E$18,IF(OR(SUM(B90:D90)>0,ABS(SUM(B90:C90))<ABS(SUM(D90:E90))),($D$18*SUM(B90:D90)+$E$18*E90)/SUM(B90:E90)))),IF(ABS(SUM(B90:D90))>ABS(E90),СРВЗВЕШ($B$18:$D$18,B90:D90),$E$18),IF(ABS(SUM(B90:D90))>ABS(E90),($B$18*SUM(B90:C90)+$D$18*D90)/SUM(B90:D90),$E$18),IF(ABS(B90)>ABS(SUM(C90:D90)),($B$18*SUM(B90:D90)+$E$18*E90)/SUM(B90:E90),$D$18),IF(ABS(B90)>ABS(SUM(C90:D90)),($B$18*B90+$C$18*C90+$E$18*E90)/SUM(B90,C90,E90),$D$18)))) -> 84 | K90: =IF(ISTEXT(J90),H90=J90,ROUND(H90,2)=ROUND(J90,2)) -> TRUE
B91: 4 | C91: -2 | D91: -1 | E91: 0 | H91: =(B18*(B91+C91+D91+E91)+C18*C91*0+D18*D91*0+E18*E91)/(B91+C91+D91+E91) -> 82 | I91: =IF(ОДИНАКЗНАК(B91:E91),1,IF(ОДИНАКЗНАК(C91:E91),2,IF(AND(ОДИНАКЗНАК(B91:C91),ОДИНАКЗНАК(D91:E91)),3,IF(ОДИНАКЗНАК(B91:D91),4,IF(AND(NOT(ОДИНАКЗНАК(B91:C91)),NOT(ОДИНАКЗНАК(C91:D91))),5,IF(AND(NOT(ОДИНАКЗНАК(B91:C91)),ОДИНАКЗНАК(C91:D91)),6,7)))))) -> 2 | J91: =IF(SUM(B91:E91)=0,"вне рынка",IF(SUM(B91:D91)=0,$E$18,CHOOSE(I91,СРВЗВЕШ($B$18:$E$18,B91:E91),IF(ABS(B91)>ABS(SUM(C91:E91)),$B$18,IF(ABS(B91)<ABS(SUM(C91:D91)),($D$18*SUM(B91:D91)+$E$18*E91)/SUM(B91:E91),$E$18)),IF(ABS(SUM(B91:C91))>ABS(SUM(D91:E91)),СРВЗВЕШ($B$18:$C$18,B91:C91),IF(D91=0,$E$18,IF(OR(SUM(B91:D91)>0,ABS(SUM(B91:C91))<ABS(SUM(D91:E91))),($D$18*SUM(B91:D91)+$E$18*E91)/SUM(B91:E91)))),IF(ABS(SUM(B91:D91))>ABS(E91),СРВЗВЕШ($B$18:$D$18,B91:D91),$E$18),IF(ABS(SUM(B91:D91))>ABS(E91),($B$18*SUM(B91:C91)+$D$18*D91)/SUM(B91:D91),$E$18),IF(ABS(B91)>ABS(SUM(C91:D91)),($B$18*SUM(B91:D91)+$E$18*E91)/SUM(B91:E91),$D$18),IF(ABS(B91)>ABS(SUM(C91:D91)),($B$18*B91+$C$18*C91+$E$18*E91)/SUM(B91,C91,E91),$D$18)))) -> 82 | K91: =IF(ISTEXT(J91),H91=J91,ROUND(H91,2)=ROUND(J91,2)) -> TRUE
B92: 3 | C92: -2 | D92: 0 | E92: 0 | H92: =(B18*(B92+C92)+C18*C92*0)/(B92+C92) -> 82 | I92: =IF(ОДИНАКЗНАК(B92:E92),1,IF(ОДИНАКЗНАК(C92:E92),2,IF(AND(ОДИНАКЗНАК(B92:C92),ОДИНАКЗНАК(D92:E92)),3,IF(ОДИНАКЗНАК(B92:D92),4,IF(AND(NOT(ОДИНАКЗНАК(B92:C92)),NOT(ОДИНАКЗНАК(C92:D92))),5,IF(AND(NOT(ОДИНАКЗНАК(B92:C92)),ОДИНАКЗНАК(C92:D92)),6,7)))))) -> 2 | J92: =IF(SUM(B92:E92)=0,"вне рынка",IF(SUM(B92:D92)=0,$E$18,CHOOSE(I92,СРВЗВЕШ($B$18:$E$18,B92:E92),IF(ABS(B92)>ABS(SUM(C92:E92)),$B$18,IF(ABS(B92)<ABS(SUM(C92:D92)),($D$18*SUM(B92:D92)+$E$18*E92)/SUM(B92:E92),$E$18)),IF(ABS(SUM(B92:C92))>ABS(SUM(D92:E92)),СРВЗВЕШ($B$18:$C$18,B92:C92),IF(D92=0,$E$18,IF(OR(SUM(B92:D92)>0,ABS(SUM(B92:C92))<ABS(SUM(D92:E92))),($D$18*SUM(B92:D92)+$E$18*E92)/SUM(B92:E92)))),IF(ABS(SUM(B92:D92))>ABS(E92),СРВЗВЕШ($B$18:$D$18,B92:D92),$E$18),IF(ABS(SUM(B92:D92))>ABS(E92),($B$18*SUM(B92:C92)+$D$18*D92)/SUM(B92:D92),$E$18),IF(ABS(B92)>ABS(SUM(C92:D92)),($B$18*SUM(B92:D92)+$E$18*E92)/SUM(B92:E92),$D$18),IF(ABS(B92)>ABS(SUM(C92:D92)),($B$18*B92+$C$18*C92+$E$18*E92)/SUM(B92,C92,E92),$D$18)))) -> 82 | K92: =IF(ISTEXT(J92),H92=J92,ROUND(H92,2)=ROUND(J92,2)) -> TRUE
B93: 3 | C93: 2 | D93: 0 | E93: -1 | H93: =(B18*B93+C18*C93+D18*D93+E18*E93*0)/(B93+C93+D93+E93*0) -> 82.4 | I93: =IF(ОДИНАКЗНАК(B93:E93),1,IF(ОДИНАКЗНАК(C93:E93),2,IF(AND(ОДИНАКЗНАК(B93:C93),ОДИНАКЗНАК(D93:E93)),3,IF(ОДИНАКЗНАК(B93:D93),4,IF(AND(NOT(ОДИНАКЗНАК(B93:C93)),NOT(ОДИНАКЗНАК(C93:D93))),5,IF(AND(NOT(ОДИНАКЗНАК(B93:C93)),ОДИНАКЗНАК(C93:D93)),6,7)))))) -> 3 | J93: =IF(SUM(B93:E93)=0,"вне рынка",IF(SUM(B93:D93)=0,$E$18,CHOOSE(I93,СРВЗВЕШ($B$18:$E$18,B93:E93),IF(ABS(B93)>ABS(SUM(C93:E93)),$B$18,IF(ABS(B93)<ABS(SUM(C93:D93)),($D$18*SUM(B93:D93)+$E$18*E93)/SUM(B93:E93),$E$18)),IF(ABS(SUM(B93:C93))>ABS(SUM(D93:E93)),СРВЗВЕШ($B$18:$C$18,B93:C93),IF(D93=0,$E$18,IF(OR(SUM(B93:D93)>0,ABS(SUM(B93:C93))<ABS(SUM(D93:E93))),($D$18*SUM(B93:D93)+$E$18*E93)/SUM(B93:E93)))),IF(ABS(SUM(B93:D93))>ABS(E93),СРВЗВЕШ($B$18:$D$18,B93:D93),$E$18),IF(ABS(SUM(B93:D93))>ABS(E93),($B$18*SUM(B93:C93)+$D$18*D93)/SUM(B93:D93),$E$18),IF(ABS(B93)>ABS(SUM(C93:D93)),($B$18*SUM(B93:D93)+$E$18*E93)/SUM(B93:E93),$D$18),IF(ABS(B93)>ABS(SUM(C93:D93)),($B$18*B93+$C$18*C93+$E$18*E93)/SUM(B93,C93,E93),$D$18)))) -> 82.40000153 | K93: =IF(ISTEXT(J93),H93=J93,ROUND(H93,2)=ROUND(J93,2)) -> TRUE
B94: 3 | C94: 2 | D94: 0 | E94: -5 | H94: =IF(SUM(B94:E94)=0,"вне рынка") -> вне рынка | I94: =IF(ОДИНАКЗНАК(B94:E94),1,IF(ОДИНАКЗНАК(C94:E94),2,IF(AND(ОДИНАКЗНАК(B94:C94),ОДИНАКЗНАК(D94:E94)),3,IF(ОДИНАКЗНАК(B94:D94),4,IF(AND(NOT(ОДИНАКЗНАК(B94:C94)),NOT(ОДИНАКЗНАК(C94:D94))),5,IF(AND(NOT(ОДИНАКЗНАК(B94:C94)),ОДИНАКЗНАК(C94:D94)),6,7)))))) -> 3 | J94: =IF(SUM(B94:E94)=0,"вне рынка",IF(SUM(B94:D94)=0,$E$18,CHOOSE(I94,СРВЗВЕШ($B$18:$E$18,B94:E94),IF(ABS(B94)>ABS(SUM(C94:E94)),$B$18,IF(ABS(B94)<ABS(SUM(C94:D94)),($D$18*SUM(B94:D94)+$E$18*E94)/SUM(B94:E94),$E$18)),IF(ABS(SUM(B94:C94))>ABS(SUM(D94:E94)),СРВЗВЕШ($B$18:$C$18,B94:C94),IF(D94=0,$E$18,IF(OR(SUM(B94:D94)>0,ABS(SUM(B94:C94))<ABS(SUM(D94:E94))),($D$18*SUM(B94:D94)+$E$18*E94)/SUM(B94:E94)))),IF(ABS(SUM(B94:D94))>ABS(E94),СРВЗВЕШ($B$18:$D$18,B94:D94),$E$18),IF(ABS(SUM(B94:D94))>ABS(E94),($B$18*SUM(B94:C94)+$D$18*D94)/SUM(B94:D94),$E$18),IF(ABS(B94)>ABS(SUM(C94:D94)),($B$18*SUM(B94:D94)+$E$18*E94)/SUM(B94:E94),$D$18),IF(ABS(B94)>ABS(SUM(C94:D94)),($B$18*B94+$C$18*C94+$E$18*E94)/SUM(B94,C94,E94),$D$18)))) -> вне рынка | K94: =IF(ISTEXT(J94),H94=J94,ROUND(H94,2)=ROUND(J94,2)) -> TRUE
B95: 3 | C95: 2 | D95: 0 | E95: -6 | H95: =(B18*B95*0+C18*C95*0+D18*D95+E18*E95)/(B95*0+C95*0+D95+E95) -> 85 | I95: =IF(ОДИНАКЗНАК(B95:E95),1,IF(ОДИНАКЗНАК(C95:E95),2,IF(AND(ОДИНАКЗНАК(B95:C95),ОДИНАКЗНАК(D95:E95)),3,IF(ОДИНАКЗНАК(B95:D95),4,IF(AND(NOT(ОДИНАКЗНАК(B95:C95)),NOT(ОДИНАКЗНАК(C95:D95))),5,IF(AND(NOT(ОДИНАКЗНАК(B95:C95)),ОДИНАКЗНАК(C95:D95)),6,7)))))) -> 3 | J95: =IF(SUM(B95:E95)=0,"вне рынка",IF(SUM(B95:D95)=0,$E$18,CHOOSE(I95,СРВЗВЕШ($B$18:$E$18,B95:E95),IF(ABS(B95)>ABS(SUM(C95:E95)),$B$18,IF(ABS(B95)<ABS(SUM(C95:D95)),($D$18*SUM(B95:D95)+$E$18*E95)/SUM(B95:E95),$E$18)),IF(ABS(SUM(B95:C95))>ABS(SUM(D95:E95)),СРВЗВЕШ($B$18:$C$18,B95:C95),IF(D95=0,$E$18,IF(OR(SUM(B95:D95)>0,ABS(SUM(B95:C95))<ABS(SUM(D95:E95))),($D$18*SUM(B95:D95)+$E$18*E95)/SUM(B95:E95)))),IF(ABS(SUM(B95:D95))>ABS(E95),СРВЗВЕШ($B$18:$D$18,B95:D95),$E$18),IF(ABS(SUM(B95:D95))>ABS(E95),($B$18*SUM(B95:C95)+$D$18*D95)/SUM(B95:D95),$E$18),IF(ABS(B95)>ABS(SUM(C95:D95)),($B$18*SUM(B95:D95)+$E$18*E95)/SUM(B95:E95),$D$18),IF(ABS(B95)>ABS(SUM(C95:D95)),($B$18*B95+$C$18*C95+$E$18*E95)/SUM(B95,C95,E95),$D$18)))) -> 85 | K95: =IF(ISTEXT(J95),H95=J95,ROUND(H95,2)=ROUND(J95,2)) -> TRUE
B96: 3 | C96: -2 | D96: 0 | E96: 1 | H96: =(B18*(B96+C96)+C18*C96*0+D18*D96+E18*E96)/(B96+C96+D96+E96) -> 83.5 | I96: =IF(ОДИНАКЗНАК(B96:E96),1,IF(ОДИНАКЗНАК(C96:E96),2,IF(AND(ОДИНАКЗНАК(B96:C96),ОДИНАКЗНАК(D96:E96)),3,IF(ОДИНАКЗНАК(B96:D96),4,IF(AND(NOT(ОДИНАКЗНАК(B96:C96)),NOT(ОДИНАКЗНАК(C96:D96))),5,IF(AND(NOT(ОДИНАКЗНАК(B96:C96)),ОДИНАКЗНАК(C96:D96)),6,7)))))) -> 6 | J96: =IF(SUM(B96:E96)=0,"вне рынка",IF(SUM(B96:D96)=0,$E$18,CHOOSE(I96,СРВЗВЕШ($B$18:$E$18,B96:E96),IF(ABS(B96)>ABS(SUM(C96:E96)),$B$18,IF(ABS(B96)<ABS(SUM(C96:D96)),($D$18*SUM(B96:D96)+$E$18*E96)/SUM(B96:E96),$E$18)),IF(ABS(SUM(B96:C96))>ABS(SUM(D96:E96)),СРВЗВЕШ($B$18:$C$18,B96:C96),IF(D96=0,$E$18,IF(OR(SUM(B96:D96)>0,ABS(SUM(B96:C96))<ABS(SUM(D96:E96))),($D$18*SUM(B96:D96)+$E$18*E96)/SUM(B96:E96)))),IF(ABS(SUM(B96:D96))>ABS(E96),СРВЗВЕШ($B$18:$D$18,B96:D96),$E$18),IF(ABS(SUM(B96:D96))>ABS(E96),($B$18*SUM(B96:C96)+$D$18*D96)/SUM(B96:D96),$E$18),IF(ABS(B96)>ABS(SUM(C96:D96)),($B$18*SUM(B96:D96)+$E$18*E96)/SUM(B96:E96),$D$18),IF(ABS(B96)>ABS(SUM(C96:D96)),($B$18*B96+$C$18*C96+$E$18*E96)/SUM(B96,C96,E96),$D$18)))) -> 83.5 | K96: =IF(ISTEXT(J96),H96=J96,ROUND(H96,2)=ROUND(J96,2)) -> TRUE | L96: тут одно условие 3 -1 0 1 среднее считается так же как и 44я строка
B97: 3 | C97: 2 | D97: -1 | E97: 0 | H97: =(B18*B97+C18*C97+D18*D97*0+E18*E97)/(B97+C97+D97*0+E97) -> 82.4 | I97: =IF(ОДИНАКЗНАК(B97:E97),1,IF(ОДИНАКЗНАК(C97:E97),2,IF(AND(ОДИНАКЗНАК(B97:C97),ОДИНАКЗНАК(D97:E97)),3,IF(ОДИНАКЗНАК(B97:D97),4,IF(AND(NOT(ОДИНАКЗНАК(B97:C97)),NOT(ОДИНАКЗНАК(C97:D97))),5,IF(AND(NOT(ОДИНАКЗНАК(B97:C97)),ОДИНАКЗНАК(C97:D97)),6,7)))))) -> 3 | J97: =IF(SUM(B97:E97)=0,"вне рынка",IF(SUM(B97:D97)=0,$E$18,CHOOSE(I97,СРВЗВЕШ($B$18:$E$18,B97:E97),IF(ABS(B97)>ABS(SUM(C97:E97)),$B$18,IF(ABS(B97)<ABS(SUM(C97:D97)),($D$18*SUM(B97:D97)+$E$18*E97)/SUM(B97:E97),$E$18)),IF(ABS(SUM(B97:C97))>ABS(SUM(D97:E97)),СРВЗВЕШ($B$18:$C$18,B97:C97),IF(D97=0,$E$18,IF(OR(SUM(B97:D97)>0,ABS(SUM(B97:C97))<ABS(SUM(D97:E97))),($D$18*SUM(B97:D97)+$E$18*E97)/SUM(B97:E97)))),IF(ABS(SUM(B97:D97))>ABS(E97),СРВЗВЕШ($B$18:$D$18,B97:D97),$E$18),IF(ABS(SUM(B97:D97))>ABS(E97),($B$18*SUM(B97:C97)+$D$18*D97)/SUM(B97:D97),$E$18),IF(ABS(B97)>ABS(SUM(C97:D97)),($B$18*SUM(B97:D97)+$E$18*E97)/SUM(B97:E97),$D$18),IF(ABS(B97)>ABS(SUM(C97:D97)),($B$18*B97+$C$18*C97+$E$18*E97)/SUM(B97,C97,E97),$D$18)))) -> 82.40000153 | K97: =IF(ISTEXT(J97),H97=J97,ROUND(H97,2)=ROUND(J97,2)) -> TRUE
B98: 3 | C98: 2 | D98: -5 | E98: 0 | H98: =IF(SUM(B98:E98)=0,"вне рынка") -> вне рынка | I98: =IF(ОДИНАКЗНАК(B98:E98),1,IF(ОДИНАКЗНАК(C98:E98),2,IF(AND(ОДИНАКЗНАК(B98:C98),ОДИНАКЗНАК(D98:E98)),3,IF(ОДИНАКЗНАК(B98:D98),4,IF(AND(NOT(ОДИНАКЗНАК(B98:C98)),NOT(ОДИНАКЗНАК(C98:D98))),5,IF(AND(NOT(ОДИНАКЗНАК(B98:C98)),ОДИНАКЗНАК(C98:D98)),6,7)))))) -> 3 | J98: =IF(SUM(B98:E98)=0,"вне рынка",IF(SUM(B98:D98)=0,$E$18,CHOOSE(I98,СРВЗВЕШ($B$18:$E$18,B98:E98),IF(ABS(B98)>ABS(SUM(C98:E98)),$B$18,IF(ABS(B98)<ABS(SUM(C98:D98)),($D$18*SUM(B98:D98)+$E$18*E98)/SUM(B98:E98),$E$18)),IF(ABS(SUM(B98:C98))>ABS(SUM(D98:E98)),СРВЗВЕШ($B$18:$C$18,B98:C98),IF(D98=0,$E$18,IF(OR(SUM(B98:D98)>0,ABS(SUM(B98:C98))<ABS(SUM(D98:E98))),($D$18*SUM(B98:D98)+$E$18*E98)/SUM(B98:E98)))),IF(ABS(SUM(B98:D98))>ABS(E98),СРВЗВЕШ($B$18:$D$18,B98:D98),$E$18),IF(ABS(SUM(B98:D98))>ABS(E98),($B$18*SUM(B98:C98)+$D$18*D98)/SUM(B98:D98),$E$18),IF(ABS(B98)>ABS(SUM(C98:D98)),($B$18*SUM(B98:D98)+$E$18*E98)/SUM(B98:E98),$D$18),IF(ABS(B98)>ABS(SUM(C98:D98)),($B$18*B98+$C$18*C98+$E$18*E98)/SUM(B98,C98,E98),$D$18)))) -> вне рынка | K98: =IF(ISTEXT(J98),H98=J98,ROUND(H98,2)=ROUND(J98,2)) -> TRUE
B99: 3 | C99: 2 | D99: -6 | E99: 0 | H99: =(D18*(B99+C99+D99)+E18*E99)/(B99+C99+D99+E99) -> 84 | I99: =IF(ОДИНАКЗНАК(B99:E99),1,IF(ОДИНАКЗНАК(C99:E99),2,IF(AND(ОДИНАКЗНАК(B99:C99),ОДИНАКЗНАК(D99:E99)),3,IF(ОДИНАКЗНАК(B99:D99),4,IF(AND(NOT(ОДИНАКЗНАК(B99:C99)),NOT(ОДИНАКЗНАК(C99:D99))),5,IF(AND(NOT(ОДИНАКЗНАК(B99:C99)),ОДИНАКЗНАК(C99:D99)),6,7)))))) -> 3 | J99: =IF(SUM(B99:E99)=0,"вне рынка",IF(SUM(B99:D99)=0,$E$18,CHOOSE(I99,СРВЗВЕШ($B$18:$E$18,B99:E99),IF(ABS(B99)>ABS(SUM(C99:E99)),$B$18,IF(ABS(B99)<ABS(SUM(C99:D99)),($D$18*SUM(B99:D99)+$E$18*E99)/SUM(B99:E99),$E$18)),IF(ABS(SUM(B99:C99))>ABS(SUM(D99:E99)),СРВЗВЕШ($B$18:$C$18,B99:C99),IF(D99=0,$E$18,IF(OR(SUM(B99:D99)>0,ABS(SUM(B99:C99))<ABS(SUM(D99:E99))),($D$18*SUM(B99:D99)+$E$18*E99)/SUM(B99:E99)))),IF(ABS(SUM(B99:D99))>ABS(E99),СРВЗВЕШ($B$18:$D$18,B99:D99),$E$18),IF(ABS(SUM(B99:D99))>ABS(E99),($B$18*SUM(B99:C99)+$D$18*D99)/SUM(B99:D99),$E$18),IF(ABS(B99)>ABS(SUM(C99:D99)),($B$18*SUM(B99:D99)+$E$18*E99)/SUM(B99:E99),$D$18),IF(ABS(B99)>ABS(SUM(C99:D99)),($B$18*B99+$C$18*C99+$E$18*E99)/SUM(B99,C99,E99),$D$18)))) -> 84 | K99: =IF(ISTEXT(J99),H99=J99,ROUND(H99,2)=ROUND(J99,2)) -> TRUE
K100: =COUNTIF(K20:K99,FALSE) -> 0

Sheet Лист2

Sheet Лист3
